Cogmind - Beta 12 @@@ ROGUE MODE // 2023.03.23 @ 12:09:24 // Winter2019/RPGLIKE Player: ArabianSandBoa Result: Destroyed by Fortress with Graviton Cannon Performance ------------- Evolutions (7) 3500 Regions Visited (39) 7800 Robots Destroyed (1070) 5350 Value Destroyed (55615) 55615 Prototype IDs (86) 1720 Alien Tech Used (5) 1000 Bonus (45041) 45041 TOTAL SCORE: 120026 Bonus ------- Triggered High Security 1500 High Alert Combat Kills 27155 Follower Combat Kills 5386 Entered Garrisons 1200 Network Hubs Disabled 200 Aligned with FarCom 300 Met Imprinter 300 Met Warlord at Base 500 MAIN.C Attacked Warlord 500 Warlord Defense Kills 10192 Built Enhanced Grunts 300 Met R17 at Cetus 500 Met R17 at Research 2000 Met Sigix 2000 Friendly Fire -6992 Cogmind --------- Core Integrity 0/800 Matter 14/300 Energy 110/950 System Corruption 0% Temperature Cool (30) Movement Treading (160) Location -3/Quarantine Parts ------- > --- POWER (3) -------- Reinforced Quantum Reactor Vortex Chain Reactor > --- PROPULSION (4) --- Centrium Heavy Treads Advanced Heavy Siege Treads > --- UTILITY (10) ----- Advanced Cooling System Advanced Cooling System Experimental Coolant Injector 0b10 Decoder Chip [Scout] Quantum Capacitor Improved Powered Armor (fused) Advanced Focal Shield Experimental Thermal Shield > --- WEAPON (8) ------- Plasma Storm > --- INVENTORY (6) ---- Plasma Storm Peak State ------------ > --- POWER ------------ Reinforced Quantum Reactor Vortex Chain Reactor > --- PROPULSION ------- Centrium Heavy Treads Advanced Heavy Siege Treads > --- UTILITY ---------- Advanced Cooling System Advanced Cooling System Experimental Coolant Injector 0b10 Decoder Chip [Scout] Quantum Capacitor Centrium Medium Armor Plating Improved Powered Armor Advanced Focal Shield Experimental Thermal Shield > --- WEAPON ----------- Plasma Storm Hypercooled Linear Accelerator Hypercooled Linear Accelerator Hypercooled Linear Accelerator > --- INVENTORY -------- Advanced Signal Interpreter Terrabomb Vortex Driver Vortex Catalyst Activator [Rating: 210] Favorites ----------- Power Light Particle Reactor Engine Light Angular Momentum Engine Power Core Light Neutrino Core Reactor Light Particle Reactor Propulsion Improved Heavy Treads Treads Improved Heavy Treads Leg Aluminum Leg Wheel Armored Huge Wheel Utility Salvage Targeting Computer Device Advanced Weapon Cycler Storage Experimental Energy Well Processor Salvage Targeting Computer Hackware Hacking Suite Protection 8R-AWN's Armor/TH Weapon 8R-AWN's Boregun Energy Gun Plasma Storm Energy Cannon Vortex Driver Ballistic Gun 8R-AWN's Boregun Ballistic Cannon Hypercooled Linear Accelerator Launcher Rocket Array Special Weapon RU-N14's Throwing Claymores v3 Slashing Weapon Katana Piercing Weapon CR-A16's Pointy Stick Build | -11 -10 -10 -9 -9 -9 -8 -8 -8 -8 -8 -8 -8 -7 -7 -7 -7 -6 -6 -6 -6 -6 -6 -6 -5 -5 -5 -5 -5 -5 -4 -4 -4 -4 -4 -4 -4 -4 -3 -3 ------- Run | Jun Mat Min Mat Min Exi Min Mat Gar Mat Gar Mat Gar Fac Low Low Zio Pro Fac Gar Fac Gar Fac Gar Fac Was Fac Upp Upp War Pro Fac Was Fac Ext Cet Arc Hub Res Qua Slots Evolved 21 | 4 2 1 3 . . . . 3 . . . . . . . 1 . . 1 1 1 . . . . 1 . . . 1 . . 1 . . . . . 1 Power 2 | . . . 1 . . . . 1 . . . . . . . . . . . . . . . . . . . . . . . . . . . . . . . Propulsion 3 | . 1 . . . . . . . . . . . . . . . . . 1 1 . . . . . . . . . . . . . . . . . . . Utility 9 | 3 1 1 1 . . . . 1 . . . . . . . 1 . . . . . . . . . 1 . . . . . . . . . . . . . Weapon 7 | 1 . . 1 . . . . 1 . . . . . . . . . . . . 1 . . . . . . . . 1 . . 1 . . . . . 1 Parts Attached 316 | 4 22 4 26 7 27 14 6 16 1 1 . 4 6 1 . 14 1 3 4 5 11 3 7 . 2 14 2 . 21 5 4 3 19 15 5 . 9 2 28 Power 20 | . . 1 4 . 3 1 . 1 . . . . 1 . . . 1 . 1 . 2 . 1 . . . . . 1 . . 1 2 . . . . . . Engine 5 | . . 1 4 . . . . . . . . . . . . . . . . . . . . . . . . . . . . . . . . . . . . Core 4 | . . . . . 2 . . 1 . . . . 1 . . . . . . . . . . . . . . . . . . . . . . . . . . Reactor 11 | . . . . . 1 1 . . . . . . . . . . 1 . 1 . 2 . 1 . . . . . 1 . . 1 2 . . . . . . Propulsion 15 | 1 3 . 3 2 . . . . . . . . . . . . . . 1 1 2 . . . . . . . . . . 1 . . 1 . . . . Treads 12 | . 2 . 3 1 . . . . . . . . . . . . . . 1 1 2 . . . . . . . . . . 1 . . 1 . . . . Leg . | . . . . . . . . . . . . . . . . . . . . . . . . . . . . . . . . . . . . . . . . Wheel 3 | 1 1 . . 1 . . . . . . . . . . . . . . . . . . . . . . . . . . . . . . . . . . . Hover . | . . . . . . . . . . . . . . . . . . . . . . . . . . . . . . . . . . . . . . . . Flight . | . . . . . . . . . . . . . . . . . . . . . . . . . . . . . . . . . . . . . . . . Utility 162 | 2 9 2 7 3 13 13 6 14 . 1 . 4 1 1 . 10 . . . . 6 1 3 . 2 9 2 . 11 2 3 1 5 10 2 . 5 . 14 Device 111 | 2 5 . 5 1 7 8 3 11 . 1 . 3 . 1 . 4 . . . . 5 1 2 . 1 8 2 . 6 2 1 1 4 8 1 . 5 . 13 Storage 2 | . . . . . . 1 . . . . . . . . . . . . . . . . . . . . . . 1 . . . . . . . . . . Processor 19 | . 3 1 1 2 3 2 1 . . . . . . . . 3 . . . . . . . . . 1 . . 2 . . . . . . . . . . Hackware 6 | . 1 . . . . 1 1 . . . . 1 . . . 1 . . . . . . . . . . . . . . . . 1 . . . . . . Protection 24 | . . 1 1 . 3 1 1 3 . . . . 1 . . 2 . . . . 1 . 1 . 1 . . . 2 . 2 . . 2 1 . . . 1 Artifact . | . . . . . . . . . . . . . . . . . . . . . . . . . . . . . . . . . . . . . . . . Weapon 119 | 1 10 1 12 2 11 . . 1 1 . . . 4 . . 4 . 3 2 4 1 2 3 . . 5 . . 9 3 1 . 12 5 2 . 4 2 14 Energy Gun 17 | . 4 . . . . . . . . . . . 2 . . 1 . . . 2 . 1 . . . 1 . . 1 1 . . 2 . 1 . . . 1 Energy Cannon 26 | . . 1 2 . . . . . . . . . 1 . . . . 1 . . . . 1 . . 1 . . 2 1 1 . 6 3 . . 2 1 3 Ballistic Gun 32 | 1 2 . 6 1 6 . . . 1 . . . . . . 2 . 2 1 2 1 1 2 . . 1 . . 1 . . . . . 1 . 1 . . Ballistic Cannon 9 | . 1 . . 1 . . . 1 . . . . . . . . . . . . . . . . . . . . 1 . . . . . . . . . 5 Launcher 19 | . 3 . 1 . 1 . . . . . . . 1 . . . . . . . . . . . . 1 . . 1 . . . 3 1 . . 1 1 5 Special Weapon 6 | . . . . . . . . . . . . . . . . . . . . . . . . . . . . . 3 1 . . 1 1 . . . . . Impact Weapon . | . . . . . . . . . . . . . . . . . . . . . . . . . . . . . . . . . . . . . . . . Slashing Weapon 9 | . . . 3 . 4 . . . . . . . . . . . . . 1 . . . . . . 1 . . . . . . . . . . . . . Piercing Weapon 1 | . . . . . . . . . . . . . . . . 1 . . . . . . . . . . . . . . . . . . . . . . . Special Melee Weapon . | . . . . . . . . . . . . . . . . . . . . . . . . . . . . . . . . . . . . . . . . Unidentified Prototypes 54 | . . . 1 . 11 5 . . . . . . 1 . . 4 . . . 2 1 1 . . . 5 . . 9 . . . 2 . 4 . . . 8 Corrupted Parts 1 | . . . 1 . . . . . . . . . . . . . . . . . . . . . . . . . . . . . . . . . . . . System Corruption 3 | . . . 3 . . . . . . . . . . . . . . . . . . . . . . . . . . . . . . . . . . . . Parts Lost 5 | . . . 2 . . . 1 . . . . . . . . 1 . . . . . . . . . . . . . . . . . . . . . . 1 Power . | . . . . . . . . . . . . . . . . . . . . . . . . . . . . . . . . . . . . . . . . Propulsion 1 | . . . 1 . . . . . . . . . . . . . . . . . . . . . . . . . . . . . . . . . . . . Utility 3 | . . . 1 . . . 1 . . . . . . . . 1 . . . . . . . . . . . . . . . . . . . . . . . Weapon 1 | . . . . . . . . . . . . . . . . . . . . . . . . . . . . . . . . . . . . . . . 1 Highest Loss Streak 2 | . . . 2 . . . 1 . . . . . . . . 1 . . . . . . . . . . . . . . . . . . . . . . 1 To Critical Strikes . | . . . . . . . . . . . . . . . . . . . . . . . . . . . . . . . . . . . . . . . . Average Slot Usage (%) 80 | . 96 99 98 96 83 85 90 91 93 94 94 93 93 94 94 69 65 71 77 79 79 79 80 80 77 76 76 77 65 57 56 56 58 59 64 66 64 64 63 Engine 2 | . 11 9 9 14 10 . . . . . . . . . . . . . . . . . . . . . . . . . . . . . . . . . . Core 2 | . . . . . 2 7 7 8 11 11 11 11 10 11 11 11 10 5 1 . . . . . . . . . . . . . . . . . . . . Reactor 6 | . . . . . 1 6 7 6 5 5 5 5 5 5 5 5 5 11 13 15 14 14 14 14 14 13 13 13 11 8 8 8 8 8 8 8 8 8 8 Treads 6 | . 6 19 15 8 . . . . . . . . . . . . . . 1 8 9 9 9 9 9 9 9 9 9 8 8 8 8 8 8 8 8 8 8 Wheel 2 | . 6 . . 2 7 7 7 6 5 5 5 5 5 5 5 5 5 5 3 . . . . . . . . . . . . . . . . . . . . Device 17 | . 33 5 7 7 10 14 20 22 29 29 29 29 29 29 29 8 11 11 10 10 11 14 14 14 11 9 12 13 16 13 13 13 20 22 25 25 27 29 27 Processor 14 | . 7 33 31 34 27 21 15 17 11 11 11 11 11 11 11 12 16 16 15 15 14 14 14 14 14 13 13 13 8 13 13 12 4 4 4 4 4 4 4 Hackware 3 | . 8 9 8 7 4 . 6 6 5 5 5 4 1 . . 3 5 5 5 5 3 . . . . . . . . . . . . . . . . . . Protection 3 | . . . 5 . 2 7 5 . . . . . 3 5 5 8 5 5 5 5 4 4 3 4 4 4 4 4 3 4 4 4 4 5 7 8 5 4 4 Energy Gun 2 | . 13 15 . . . . . . . . . . 5 . . . 5 1 . . . . . . . . . . 1 3 4 4 3 4 7 8 6 4 3 Energy Cannon 2 | . . 4 3 . . . . . . . . . 1 5 5 . . 1 5 5 4 4 4 4 4 3 . . 4 2 4 4 5 5 . . 1 2 2 Ballistic Gun 10 | . 7 . 12 20 8 21 21 19 22 23 23 23 12 11 11 5 . 7 13 14 15 18 19 19 19 18 18 18 3 . . . . . 3 4 3 2 . Launcher 1 | . 1 . . . . . . . . . . . 2 5 5 3 . . . . . . . . . . 4 4 2 . . . . . . . . 1 . Naked Turns . | . . . . . . . . . . . . . . . . . . . . . . . . . . . . . . . . . . . . . . . . Heaviest Build 172 | 9 14 26 38 33 77 65 61 74 74 68 67 73 101 101 96 116 76 74 83 83 99 106 116 113 139 139 139 139 142 141 124 144 162 172 137 137 146 146 169 Greatest Support 160 | 16 46 46 46 43 40 28 28 28 28 28 28 28 28 28 28 28 28 28 60 120 150 150 150 150 150 150 150 150 150 150 150 155 155 155 160 160 160 160 160 Greatest Overweight (x) 9 | . 4 . 5 9 2 2 2 2 2 2 2 2 3 3 3 4 2 2 2 1 . . . . . . . . . . . . 1 1 . . . . 1 Average Overweight (x) . | . . . . . . 1 1 1 2 2 2 2 2 3 3 2 2 2 1 . . . . . . . . . . . . . . . . . . . . Largest Inventory Capacity 6 | . 2 2 4 4 5 6 6 6 6 6 6 6 6 6 6 6 6 6 6 6 6 6 6 6 6 6 6 6 6 6 6 6 6 6 6 6 6 6 6 Average Capacity 5 | . . 2 3 4 4 5 6 6 6 6 6 6 6 6 6 6 6 6 6 6 6 6 6 6 6 6 6 6 6 6 6 6 6 6 6 6 6 6 6 Most Carried 6 | . 2 2 4 4 5 6 6 6 6 6 6 6 6 6 6 6 6 6 6 6 6 6 6 6 6 6 6 6 6 6 6 6 6 6 6 6 6 6 6 Average Carried 5 | . . 1 3 3 3 5 5 5 6 6 6 6 6 6 6 5 6 5 5 5 5 5 5 6 5 5 6 6 5 5 5 6 5 5 5 6 5 4 5 Final Capacity 6 | . 2 2 4 4 5 6 6 6 6 6 6 6 6 6 6 6 6 6 6 6 6 6 6 6 6 6 6 6 6 6 6 6 6 6 6 6 6 6 6 Final Carried 6 | . 2 2 4 4 5 6 6 6 6 6 6 6 6 6 6 6 6 6 6 5 6 5 6 6 6 6 6 6 6 5 6 6 6 6 6 6 5 5 5 Class Distribution -------------------- 32% | Hacker-Mutant 28% | Scavenger-Mutant 11% | Scavenger-Gunner 9% | Hacker-Executioner 9% | Hacker-Gunner 3% | Hacker-Skirmisher Dominant Class ---------------- Hacker-Skirmisher | -10/Materials Hacker-Mutant | -10/Mines Hacker-Mutant | -9/Materials Hacker-Gunner | -9/Mines Hacker-Mutant | -9/Exiles Scavenger-Mutant | -8/Mines Scavenger-Mutant | -8/Materials Scavenger-Mutant | -8/Garrison Scavenger-Mutant | -8/Materials Scavenger-Mutant | -8/Garrison Scavenger-Mutant | -8/Materials Scavenger-Mutant | -8/Garrison Scavenger-Mutant | -7/Factory Scavenger-Mutant | -7/Lower Caves Scavenger-Mutant | -7/Lower Caves Hacker-Mutant | -7/Zion Hacker-Gunner | -6/Proximity Caves Hacker-Gunner | -6/Factory Hacker-Mutant | -6/Garrison Hacker-Mutant | -6/Factory Hacker-Gunner | -6/Garrison Scavenger-Mutant | -6/Factory Scavenger-Gunner | -6/Garrison Scavenger-Gunner | -5/Factory Scavenger-Gunner | -5/Waste Scavenger-Gunner | -5/Factory Scavenger-Gunner | -5/Upper Caves Scavenger-Mutant | -5/Upper Caves Scavenger-Gunner | -5/Warlord Scavenger-Executioner | -4/Proximity Caves Scavenger-Mutant | -4/Factory Hacker-Executioner | -4/Waste Hacker-Mutant | -4/Factory Hacker-Executioner | -4/Extension Hacker-Executioner | -4/Cetus Hacker-Mutant | -4/Archives Hacker-Executioner | -4/Hub_04(d) Hacker-Executioner | -3/Research Hacker-Mutant | -3/Quarantine Resources | -11 -10 -10 -9 -9 -9 -8 -8 -8 -8 -8 -8 -8 -7 -7 -7 -7 -6 -6 -6 -6 -6 -6 -6 -5 -5 -5 -5 -5 -5 -4 -4 -4 -4 -4 -4 -4 -4 -3 -3 ----------- Run | Jun Mat Min Mat Min Exi Min Mat Gar Mat Gar Mat Gar Fac Low Low Zio Pro Fac Gar Fac Gar Fac Gar Fac Was Fac Upp Upp War Pro Fac Was Fac Ext Cet Arc Hub Res Qua Matter Collected 20656 | 254 722 53 1826 455 465 910 1143 1680 577 1067 . 1276 798 138 516 55 105 330 1296 102 1548 296 1600 83 203 1091 170 233 225 60 30 40 247 306 72 76 124 92 392 Remotely 88 | . 88 . . . . . . . . . . . . . . . . . . . . . . . . . . . . . . . . . . . . . . Salvage Created 50642 | 217 1623 506 2940 1180 380 842 2760 1617 1038 1090 . 1716 1199 367 915 . 95 1531 1293 119 2327 842 2009 . 1925 2506 543 784 2191 458 68 463 4969 5996 293 141 1622 919 1158 Parts 2588 | 15 79 33 217 55 71 73 166 129 71 84 . 88 91 13 42 . 6 54 87 1 124 32 94 . 25 111 21 47 67 21 2 4 245 223 22 3 56 42 74 Haulers Intercepted 31 | . 2 . 6 . . . 4 . 4 . . . 3 . . . . 2 . 1 . 1 . . . 2 . . . . . . 1 . . . 3 2 . Recyclers Shooed 17 | . 4 . 3 . . . 3 . . . . . . . . . . 4 . . . . . . . 3 . . . . . . . . . . . . . Parts Field Recycled . | . . . . . . . . . . . . . . . . . . . . . . . . . . . . . . . . . . . . . . . . Retrieved Matter . | . . . . . . . . . . . . . . . . . . . . . . . . . . . . . . . . . . . . . . . . Parts Self-Destructed 150 | . . . . . . . . . . . . . . 13 42 3 5 . . . . . . . . . 21 49 . 17 . . . . . . . . . Prevented 2 | . . . . . . . . . . . . . . . . . . . . . . . . . . . 2 . . . . . . . . . . . . Kills | -11 -10 -10 -9 -9 -9 -8 -8 -8 -8 -8 -8 -8 -7 -7 -7 -7 -6 -6 -6 -6 -6 -6 -6 -5 -5 -5 -5 -5 -5 -4 -4 -4 -4 -4 -4 -4 -4 -3 -3 ------- Run | Jun Mat Min Mat Min Exi Min Mat Gar Mat Gar Mat Gar Fac Low Low Zio Pro Fac Gar Fac Gar Fac Gar Fac Was Fac Upp Upp War Pro Fac Was Fac Ext Cet Arc Hub Res Qua Combat Hostiles Destroyed 851 | . 19 4 57 17 3 14 41 39 14 26 . 30 18 8 14 . 3 6 28 . 31 7 27 . 5 30 7 19 83 12 2 . 115 118 7 1 14 9 23 Guns 447 | . 18 4 45 17 2 14 41 39 14 26 . 30 13 5 14 . 2 6 28 . 31 7 26 . 5 30 7 19 . . . . . 3 . 1 . . . Cannons 82 | . . . 8 . . . . . . . . . . . . . . . . . . . . . . . . . 17 6 2 . 10 35 . . . . 4 AOE 288 | . 1 . 4 . 1 . . . . . . . 5 3 . . . . . . . . . . . . . . 66 5 . . 86 75 7 . 11 9 15 Classes Destroyed 29 | 3 5 . 5 2 1 1 3 2 . 1 . . . . . . . . . . . . . . 1 . . . 4 . . . . 1 . . . . . Worker 37 | 2 3 1 1 1 . 2 3 . 2 . . . 3 . . . . 1 . . . 2 . . . 2 . . . . . . 3 . . . 7 3 1 Builder 31 | . 3 . 5 . . 4 3 . 1 . . . 4 . . . . 1 . . . . . . . . . . . . . . 1 2 . . 4 1 2 Tunneler 15 | 5 1 1 . 2 . 2 . . 1 . . . . . . . . . . . . . . . . . . . . . . . 2 . . . . 1 . Hauler 31 | . 2 . 6 . . . 4 . 4 . . . 3 . . . . 2 . 1 . 1 . . . 2 . . . . . . 1 . . . 3 2 . Recycler 40 | 1 7 6 2 5 . 1 3 . 2 . . . 1 . . . . 4 . . . 1 . . . 1 . . . . . . 1 2 . . 2 1 . Carrier 5 | . . . . . . . 1 1 . . . . . . . . . . . . . . . . . . . . . . . . 1 2 . . . . . Mechanic 12 | . . . 2 . . . 1 . . . . . . . . . . . . . . . . . . 1 . . 1 . . . 2 5 . . . . . Operator 11 | . 2 . 2 . . . 2 . . . . . 2 . . . . 1 . . . . . . . . . . . . . . 1 1 . . . . . Turret 1 | . . . . . 1 . . . . . . . . . . . . . . . . . . . . . . . . . . . . . . . . . . Watcher 35 | . 3 . 4 . . . 4 1 3 . . . . . . . . 3 . . 1 1 . . . 2 . . . . 1 . 3 3 2 . 1 2 1 Swarmer 126 | . . . 13 4 . 4 12 6 4 5 . 4 3 3 . . . 2 12 . 5 . 4 . . 4 . 6 6 3 . . 8 8 5 . . 5 . Saboteur 22 | . . . . . . . . . . . . . . . . . . . . . . . . . . . . . 6 . . . 6 10 . . . . . Grunt 350 | . 19 4 30 10 . 8 21 17 7 9 . 13 7 4 11 . 2 3 11 . 5 5 8 . . 14 4 9 32 6 . . 44 36 . . 8 3 . Brawler 40 | . . . 4 1 . . 2 3 . . . 1 1 . 1 . . . . . . . 1 . . . . . 5 1 . . 16 4 . . . . . Duelist 23 | . . . 3 1 . . 1 2 . 1 . 1 2 . . . . . . . . . . . . . . 1 3 . . . 4 4 . . . . . Protector 23 | . . . . . . . 1 . . . . . 2 . . . . . . . . . . . . . . . 6 . . . 8 6 . . . . . Sentry 73 | . . . 7 . . . 2 4 2 3 . 5 1 . 1 . . 1 5 . 9 . 9 . . 4 1 3 . . 2 . 3 5 . 1 1 1 3 Demolisher 3 | . . . . . . . . . . . . . . . . . . . . . . . . . . . . . . . . . . 3 . . . . . Specialist 8 | . . . . . . . . . . 4 . . . . . . . . . . . . 2 . . . . . 1 . . . . 1 . . . . . Hunter 51 | . . . . . . 1 1 . 1 1 . 1 . 1 . . . . . . 5 2 . . . 3 . . 3 2 . . 7 14 . . 2 . 7 Programmer 79 | . . . . . . . . 6 . 3 . 4 1 . . . . . . . 5 . . . . 5 2 . 10 . . . 16 26 . . 1 . . Heavy 4 | . . . . . . . 1 . . . . . 1 . . . . . . . . . . . . . . . . . . . 1 . . . 1 . . Behemoth 14 | . . . . . . . . 1 . . . 1 . . 1 . 1 . . . 2 . 3 . . . . . . . . . 2 2 . . 1 . . Compactor 5 | . . . . . . . . . . . . . . . . . . . . . . . . . 5 . . . . . . . . . . . . . . Cetus Guard 2 | . . . . . . . . . . . . . . . . . . . . . . . . . . . . . . . . . . . 2 . . . . Quarantine Guard 10 | . . . . . . . . . . . . . . . . . . . . . . . . . . . . . . . . . . . . . . . 10 Lightning 3 | . . . . . . . . . . . . . . . . . . . . . . . . . . . . . . . . . . . . . . . 3 Striker 5 | . . . . . . . . . . . . . . . . . . . . . . . . . . . . . 5 . . . . . . . . . . Executioner 6 | . . . . . . . . . . . . . . . . . . . . . . . . . . . . . 6 . . . . . . . . . . Zionite 9 | . . . . 1 8 . . . . . . . . . . . . . . . . . . . . . . . . . . . . . . . . . . Assembled 3 | . . . . 1 2 . . . . . . . . . . . . . . . . . . . . . . . . . . . . . . . . . . Wasp 3 | . . . . . . . . . . . . . . . . . . . . . . . . . . . . . . . . . 3 . . . . . . Thug 14 | . . 3 1 1 . . . . . 1 . 1 . . . . . 1 . . . . . . . . . . 1 . . . . 2 3 . . . . Butcher 1 | . . . . . . . . . . . . . . . . . . . . . . . . . . . . . . . . . . 1 . . . . . Guerrilla 1 | . . . . . . . . . . . . . . . . . . . . . . . . . . . . . . . . . . 1 . . . . . Mutant 2 | . . . . . . . . . . . . . . . . . . . . . . . . . . . . . 2 . . . . . . . . . . Best Kill Streak 29 | 4 5 2 9 5 5 10 16 5 15 8 . 4 7 4 4 . 2 8 5 1 13 4 7 . 3 6 3 12 19 4 2 . 18 29 5 1 8 6 7 Combat Bots Only 27 | . 3 2 9 4 2 10 9 5 12 8 . 4 5 4 4 . 2 3 5 . 13 4 7 . 3 6 3 12 19 4 2 . 18 27 5 1 5 5 6 Max Kills in Single Turn 14 | 1 1 1 3 2 2 2 2 3 2 2 . 2 3 3 2 . 1 1 2 1 2 2 3 . 2 2 2 2 14 3 1 . 5 8 5 1 3 6 4 Gunslinging 1 | . . . 1 1 . . 1 . . . . . . . 1 . . . 1 . 1 . . . 1 1 1 1 . . . . . . . . . . . Exploded 13 | . 1 . 3 . 1 . . . . . . . 3 3 . . . . . . . . . . . . . . 13 3 . . 4 6 5 . 3 5 4 Melee . | . . . . . . . . . . . . . . . . . . . . . . . . . . . . . . . . . . . . . . . . Uniques/NPCs Destroyed 5 | . . . . . 4 1 . . . . . . . . . . . . . . . . . . . . . . . . . . . . . . . . . 8R-AWN (-9/Exiles) EX-BIN (-9/Exiles) EX-DEC (-9/Exiles) EX-HEX (-9/Exiles) AD-0RF (-8/Mines) Combat | -11 -10 -10 -9 -9 -9 -8 -8 -8 -8 -8 -8 -8 -7 -7 -7 -7 -6 -6 -6 -6 -6 -6 -6 -5 -5 -5 -5 -5 -5 -4 -4 -4 -4 -4 -4 -4 -4 -3 -3 -------- Run | Jun Mat Min Mat Min Exi Min Mat Gar Mat Gar Mat Gar Fac Low Low Zio Pro Fac Gar Fac Gar Fac Gar Fac Was Fac Upp Upp War Pro Fac Was Fac Ext Cet Arc Hub Res Qua Damage Taken 18465 | . 550 408 2529 340 824 734 649 515 460 940 . 631 175 78 325 . 36 4 509 35 536 199 220 . . 696 100 431 434 152 11 . 934 1777 390 129 845 183 1686 Core 12799 | . 444 333 1848 276 636 372 341 407 362 750 . 507 127 54 222 . 32 . 319 14 359 127 138 . . 379 60 242 301 84 8 . 583 1166 269 79 600 115 1245 Absorbed by Shields 4702 | . . . . . . . . 20 . . . 28 168 74 277 . . . . . . 5 182 . . 536 99 28 149 131 12 . 562 563 193 124 428 158 965 Reduced by Siege Mode 2 | . . . . . . . . . . . . . . . . . . . . . . . . . . . . . . . . . . . . . . . 2 Redirected to Core 11230 | . 349 236 1489 208 554 349 314 372 316 638 . 421 113 44 204 . 2 . 288 14 317 127 135 . . 369 41 242 246 70 8 . 504 1055 269 79 563 115 1179 Redirected to Shielding 204 | . . . . . . 10 194 . . . . . . . . . . . . . . . . . . . . . . . . . . . . . . . . Regen/Repaired (Parts) 120 | . . . . . . . . . . . . . . . . . . . . . . . . . . . . . . . . 120 . . . . . . . Core Remaining (%) 95 | 100 . 100 . . . 82 . . . . . 97 . . . . 100 . . . . . 100 . . . . . . 89 . . . . . . 94 . . Volleys Fired 2104 | 14 170 37 271 44 48 45 94 128 47 86 . 101 60 10 43 . 5 32 104 6 100 33 102 . 8 62 9 29 31 16 7 1 112 97 8 16 47 22 59 Largest 5 | 2 2 2 3 3 3 2 2 4 3 2 . 2 4 2 2 . 1 3 3 2 4 4 5 . 4 4 4 4 2 2 1 1 3 2 1 2 2 2 3 Hottest 500 | 60 90 108 108 98 85 60 60 142 85 60 . 60 236 60 60 . 250 250 93 60 126 126 243 . 130 130 130 130 200 300 100 300 500 400 300 115 300 400 380 Shots Fired 4100 | 28 304 74 499 132 78 90 188 254 96 172 . 202 119 19 86 . 5 69 218 12 288 83 254 . 32 181 36 91 36 21 7 1 124 121 10 22 47 23 78 Gun 3707 | 28 298 69 427 131 76 90 188 246 96 172 . 202 115 18 86 . 5 61 208 12 280 80 241 . 32 178 36 91 . 5 . 1 67 46 10 22 42 16 32 Cannon 345 | . . 5 70 1 . . . 8 . . . . 1 . . . . 8 10 . 8 3 13 . . 3 . . 18 16 7 . 47 72 . . 5 7 43 Launcher 29 | . 6 . 2 . 2 . . . . . . . 3 1 . . . . . . . . . . . . . . 8 . . . 4 . . . . . 3 Special 19 | . . . . . . . . . . . . . . . . . . . . . . . . . . . . . 10 . . . 6 3 . . . . . Kinetic 3310 | 14 164 . 424 132 76 90 188 254 96 172 . 202 113 18 86 . . 58 208 12 280 80 241 . 32 178 36 91 . . . . . . 1 15 17 . 32 Thermal 279 | 14 . . . . . . . . . . . . 3 . . . 5 11 10 . 8 3 13 . . 3 . . . 5 . 1 67 46 9 7 25 16 33 Explosive 33 | . 6 . 2 . 2 . . . . . . . 3 1 . . . . . . . . . . . . . . 10 . . . 6 3 . . . . . Electromagnetic 289 | . 134 74 73 . . . . . . . . . . . . . . . . . . . . . . . . . . . . . . . . . . . 8 Entropic 189 | . . . . . . . . . . . . . . . . . . . . . . . . . . . . . 26 16 7 . 51 72 . . 5 7 5 Robot Hit Streak 89 | 10 16 12 34 14 21 16 13 13 7 10 . 15 24 11 28 . 7 23 41 13 89 22 85 . 23 30 36 40 31 10 14 24 42 45 11 6 56 16 62 Robot Miss Streak 6 | 2 4 4 3 2 2 2 4 5 3 2 . 2 3 6 2 . 2 3 2 . 3 1 2 . 2 5 . 2 1 1 . . 5 3 2 2 2 3 3 Penetration Max 2 | . . . . . 2 1 2 2 2 1 . 2 2 1 1 . . 2 1 1 2 1 2 . 1 2 1 1 1 . . . . 1 . 1 1 . 1 Secondary Targets 45 | . 4 1 9 1 . 1 4 . 3 1 . 3 . . 2 . . . 2 . 3 1 1 . 1 5 1 2 . . . . . . . . . . . Max Gunslinging Chain 1 | . 1 1 1 1 . 1 1 . 1 1 . 1 . . 1 . . . 1 . 1 1 1 . 1 1 1 1 . . . . . . . . . . . Capacitor 279 | . . . . . . . . . . . . . . . . . . . . . . . . . . . . . 10 1 7 1 97 70 9 1 27 21 35 Shots Hit Robots 2396 | 17 136 46 318 73 69 64 110 98 51 55 . 85 69 14 69 . 4 55 89 5 197 53 143 . 29 125 26 58 30 16 4 1 93 85 6 17 29 6 51 Core Hits 2155 | 9 55 20 109 31 33 34 79 72 37 37 . 49 59 14 32 . 13 30 53 2 82 22 64 . 12 71 12 28 104 27 3 5 355 326 46 3 73 48 106 Critical Kills 275 | . 1 . . . 5 18 31 28 16 23 . 17 12 5 9 . . 14 19 1 23 . 17 . 4 19 3 10 . . . . . . . . . . . Critical Parts Destroyed 406 | . . . 2 . 8 22 34 26 20 21 . 36 16 2 19 . . 20 22 3 43 5 48 . 1 40 6 11 . . . . . . . 1 . . . Critical Strikes 799 | . 1 1 2 . 16 42 66 55 37 44 . 54 28 7 28 . . 34 45 4 72 5 69 . 6 61 9 24 16 7 4 . 13 37 . 4 3 . 5 Meltdown 1 | . . . . . . . . . . . . . . . . . . . . . . . 1 . . . . . . . . . . . . . . . . Destroy 710 | . 1 . 2 . 14 42 66 55 37 44 . 54 28 7 28 . . 34 45 4 72 5 68 . 6 61 9 24 . . . . . . . 4 . . . Blast 3 | . . . . . . . . . . . . . . . . . . . . . . . . . . . . . . . . . . . . . . . 3 Corrupt 2 | . . 1 . . . . . . . . . . . . . . . . . . . . . . . . . . . . . . . . . . . . 1 Sever 4 | . . . . . 2 . . . . . . . . . . . . . . . . . . . . . . . . . . . 2 . . . . . . Sunder 79 | . . . . . . . . . . . . . . . . . . . . . . . . . . . . . 16 7 4 . 11 37 . . 3 . 1 Melee Attacks 23 | . . . 6 . 16 . . . . . . . . . . 1 . . . . . . . . . . . . . . . . . . . . . . . Impact . | . . . . . . . . . . . . . . . . . . . . . . . . . . . . . . . . . . . . . . . . Slashing 22 | . . . 6 . 16 . . . . . . . . . . . . . . . . . . . . . . . . . . . . . . . . . . Piercing 1 | . . . . . . . . . . . . . . . . 1 . . . . . . . . . . . . . . . . . . . . . . . Sneak Attacks . | . . . . . . . . . . . . . . . . . . . . . . . . . . . . . . . . . . . . . . . . Combat Hostiles . | . . . . . . . . . . . . . . . . . . . . . . . . . . . . . . . . . . . . . . . . Follow-up Attacks 1 | . . . . . 1 . . . . . . . . . . . . . . . . . . . . . . . . . . . . . . . . . . Damage Inflicted 137126 | 175 2039 949 6153 1365 1599 1354 3091 2668 1588 1618 . 2516 2399 386 1410 . 615 1680 2353 126 4695 1385 4352 . 796 3615 713 1550 16617 1838 347 224 25212 23304 2702 655 5537 2135 7365 Guns 49651 | 175 1884 682 4853 1365 1116 1354 2996 2668 1511 1611 . 2516 1545 238 1410 . 615 1424 2353 126 4623 1385 4274 . 796 3615 713 1550 . 18 . 28 415 472 62 655 337 95 171 Cannons 15340 | . . 78 802 . . . . . . . . . . . . . . 256 . . 31 . 78 . . . . . 1760 997 318 . 2660 6584 . . 509 . 1267 Explosions 70849 | . 155 189 496 . 91 . 95 . 77 . . . 854 148 . . . . . . 41 . . . . . . . 14404 823 29 196 21853 16100 2640 . 4691 2040 5927 Melee 392 | . . . . . 392 . . . . . . . . . . . . . . . . . . . . . . . . . . . . . . . . . . Ramming 9 | . . . 2 . . . . . . 7 . . . . . . . . . . . . . . . . . . . . . . . . . . . . . Kinetic 46091 | 54 876 . 4805 1365 1116 1354 2996 2668 1511 1611 . 2516 1487 238 1410 . . 1263 2353 126 4623 1385 4274 . 796 3615 713 1550 . . . . . . 34 415 114 . 823 Thermal 51304 | 121 129 189 83 . . . 95 . . . . . 58 . . . 615 417 . . 31 . 78 . . . . . . 841 . 224 18845 14313 2668 240 4765 2135 5457 Explosive 7656 | . . . 413 . 91 . . . . . . . 776 148 . . . . . . 41 . . . . . . . 2459 . 29 . 1440 2259 . . . . . Electromagnetic 3322 | . 1034 760 850 . . . . . 77 . . . 78 . . . . . . . . . . . . . . . . . . . 3 . . . 149 . 371 Impact . | . . . . . . . . . . . . . . . . . . . . . . . . . . . . . . . . . . . . . . . . Slashing 1277 | . . . . . 392 . . . . . . . . . . . . . . . . . . . . . . . 453 . . . 284 148 . . . . . Piercing . | . . . . . . . . . . . . . . . . . . . . . . . . . . . . . . . . . . . . . . . . Entropic 27467 | . . . . . . . . . . . . . . . . . . . . . . . . . . . . . 13705 997 318 . 4640 6584 . . 509 . 714 Highest Corruption 21 | . . 1 4 4 4 . . 2 . . . 1 1 . . . . . . . 1 1 1 . 7 7 1 1 1 1 . . 6 18 18 18 21 . . Average Corruption 4 | . . 1 3 4 3 . . 1 . . . 1 1 . . . . . . . 1 1 1 . 6 5 1 1 1 1 . . 4 11 18 18 18 . . Corruption Purged 17 | . . . . . 4 . . 4 . . . 1 1 . . . . . . . . . . . . 7 . . . . . . . . . . . . . Corruption Blocked 4 | . . . . . . . . . . . . . . . . . . . . . . . . . . . . . 4 . . . . . . . . . . Effects 344 | . . 7 68 34 22 . . 1 . . . . 1 . . . . . . . 2 1 15 . 5 16 2 4 1 6 . . 50 58 12 9 30 . . Message Errors 82 | . . 2 10 10 5 . . . . . . . . . . . . . . . . . 5 . 2 5 1 . 1 2 . . 12 17 2 3 5 . . Matter Fused 73 | . . 2 14 6 7 . . . . . . . . . . . . . . . 2 1 6 . 1 2 . 1 . 1 . . 9 11 3 3 4 . . Heat Flow Errors 42 | . . 1 5 3 1 . . . . . . . 1 . . . . . . . . . 1 . 1 6 . . . 2 . . 7 9 2 . 3 . . Energy Discharges 36 | . . 1 7 5 2 . . . . . . . . . . . . . . . . . 1 . 1 1 1 . . . . . 4 7 2 . 4 . . Parts Rejected 6 | . . . 4 . 1 . . . . . . . . . . . . . . . . . . . . . . . . . . . . 1 . . . . . Parts Fused 5 | . . . 2 . . . . . . . . . . . . . . . . . . . . . . . . . . . . . . 1 . . 2 . . Data Loss (minor) 48 | . . . 12 6 4 . . 1 . . . . . . . . . . . . . . 1 . . 2 . 2 . 1 . . 8 6 . 1 4 . . Data Loss (major) 18 | . . 1 3 . 2 . . . . . . . . . . . . . . . . . . . . . . . . . . . 4 4 . 1 3 . . Misfires 15 | . . . 4 3 . . . . . . . . . . . . . . . . . . . . . . . . . . . . 5 1 2 . . . . Alerts 4 | . . . 1 . . . . . . . . . . . . . . . . . . . . . . . . . . . . . . 1 1 . 1 . . Misdirections 1 | . . . . . . . . . . . . . . . . . . . . . . . . . . . . . . . . . . . . . 1 . . Weapon Failures 14 | . . . 6 1 . . . . . . . . . . . . . . . . . . 1 . . . . 1 . . . . 1 . . 1 3 . . Overload Shots 5 | . . . . . . . . . . . . . . . . . . . . . 2 3 . . . . . . . . . . . . . . . . . Effects 1 | . . . . . . . . . . . . . . . . . . . . . . 1 . . . . . . . . . . . . . . . . . Short Circuit 1 | . . . . . . . . . . . . . . . . . . . . . . 1 . . . . . . . . . . . . . . . . . Overflow Damage 2597 | . . 15 35 . . . 20 . . . . . . . . . . 2 . . . . . . . . . . 739 13 . . 639 896 2 . 179 36 21 Projectiles 1273 | . . . 14 . . . . . . . . . . . . . . 2 . . . . . . . . . . 127 13 . . 385 607 . . 125 . . Explosions 1324 | . . 15 21 . . . 20 . . . . . . . . . . . . . . . . . . . . . 612 . . . 254 289 2 . 54 36 21 Melee . | . . . . . . . . . . . . . . . . . . . . . . . . . . . . . . . . . . . . . . . . Knockbacks . | . . . . . . . . . . . . . . . . . . . . . . . . . . . . . . . . . . . . . . . . Impact . | . . . . . . . . . . . . . . . . . . . . . . . . . . . . . . . . . . . . . . . . Kinetic . | . . . . . . . . . . . . . . . . . . . . . . . . . . . . . . . . . . . . . . . . Secondary . | . . . . . . . . . . . . . . . . . . . . . . . . . . . . . . . . . . . . . . . . Self-Inflicted Damage 2773 | . 96 57 20 . . . . . . 3 . . 79 . . . . . . . . . 90 . . . . . 165 9 . . 29 657 212 . 89 226 1041 Shots 146 | . 3 2 1 . . . . . . . . . 3 . . . . . . . . . 1 . . . . . 1 6 . . 15 65 9 . 1 14 25 Rammed 2 | . . . 1 . . . . . . 1 . . . . . . . . . . . . . . . . . . . . . . . . . . . . . Targets Rammed 2 | . . . 1 . . . . . . 1 . . . . . . . . . . . . . . . . . . . . . . . . . . . . . Kicked . | . . . . . . . . . . . . . . . . . . . . . . . . . . . . . . . . . . . . . . . . Crushed . | . . . . . . . . . . . . . . . . . . . . . . . . . . . . . . . . . . . . . . . . Highest Temperature 454 | 40 173 261 439 220 223 276 160 139 10 33 . 170 374 42 68 . 327 295 132 8 264 276 332 . 288 350 210 359 327 377 104 252 454 426 247 . 356 356 396 Average Temperature 70 | 21 50 69 67 52 21 65 54 39 3 9 . 58 79 19 30 . 151 52 15 3 58 62 73 . 128 71 86 126 113 138 49 146 130 115 86 . 133 148 159 Received Heat Transfer 5036 | . 255 183 873 84 . 678 279 126 198 432 . 192 33 28 128 . 30 21 144 . 99 40 203 . . 70 40 138 48 36 4 . 262 240 8 16 100 22 26 Effects 21 | . . . 3 . . . . . . . . . 3 . . . . . . . . 3 . . . 2 1 2 . . . . 2 1 . . 3 1 . Shutdowns 6 | . . . 1 . . . . . . . . . 1 . . . . . . . . . . . . 1 . 1 . . . . . . . . 1 1 . Energy Bleed 2 | . . . . . . . . . . . . . 1 . . . . . . . . . . . . . 1 . . . . . . . . . . . . Interference 8 | . . . . . . . . . . . . . 1 . . . . . . . . 3 . . . . . . . . . . 2 . . . 2 . . Matter Decay 1 | . . . . . . . . . . . . . . . . . . . . . . . . . . . . . . . . . . 1 . . . . . Short Circuit 2 | . . . 1 . . . . . . . . . . . . . . . . . . . . . . . . 1 . . . . . . . . . . . Damage (minor) 2 | . . . 1 . . . . . . . . . . . . . . . . . . . . . . 1 . . . . . . . . . . . . . Siege Activations 4 | . . . . . . . . . . . . . . . . . . . . . . . . . . . . . . . . . . . . . 1 . 3 Total Turns 26 | . . . . . . . . . . . . . . . . . . . . . . . . . . . . . . . . . . . . . 7 . 19 Longest Duration 7 | . . . . . . . . . . . . . . . . . . . . . . . . . . . . . . . . . . . . . 7 . 7 Robots Corrupted 3 | . . 1 . . . . . . . . . . . . . . . . . . . . . . . . . . . . . . . . . . . . 2 Combat Hostiles 2 | . . . . . . . . . . . . . . . . . . . . . . . . . . . . . . . . . . . . . . . 2 Parts Fried 24 | . 8 4 6 . . . . . 1 . . . . . . . . . . . . . . . . . . . . . . . . . . . . . 5 Impact Corruptions . | . . . . . . . . . . . . . . . . . . . . . . . . . . . . . . . . . . . . . . . . Robots Melted 35 | . . . . . . . . . . . . . . . . . 1 . . . . . 1 . . . . . . 1 . . 19 7 . . 3 . 3 Combat Hostiles 32 | . . . . . . . . . . . . . . . . . 1 . . . . . 1 . . . . . . 1 . . 19 5 . . 3 . 2 Parts Melted 226 | . . . . . . . . . . . . 1 . . . . 1 1 . . . . . . . . . . 1 4 . 1 95 62 5 . 27 5 23 Heat Transferred 63134 | 275 100 350 150 . . . 50 . . . . . 74 . . . 875 625 . . 50 . 74 . . . . . . 1110 . 385 23079 17332 2927 259 5958 2773 6688 Parts Sabotaged . | . . . . . . . . . . . . . . . . . . . . . . . . . . . . . . . . . . . . . . . . Parts Stolen . | . . . . . . . . . . . . . . . . . . . . . . . . . . . . . . . . . . . . . . . . Parts Stripped . | . . . . . . . . . . . . . . . . . . . . . . . . . . . . . . . . . . . . . . . . Power Chain Reactions 9 | . 3 4 1 . . . . . 1 . . . . . . . . . . . . . . . . . . . . . . . . . . . . . . Missiles Intercepted . | . . . . . . . . . . . . . . . . . . . . . . . . . . . . . . . . . . . . . . . . Alert | -11 -10 -10 -9 -9 -9 -8 -8 -8 -8 -8 -8 -8 -7 -7 -7 -7 -6 -6 -6 -6 -6 -6 -6 -5 -5 -5 -5 -5 -5 -4 -4 -4 -4 -4 -4 -4 -4 -3 -3 ------- Run | Jun Mat Min Mat Min Exi Min Mat Gar Mat Gar Mat Gar Fac Low Low Zio Pro Fac Gar Fac Gar Fac Gar Fac Was Fac Upp Upp War Pro Fac Was Fac Ext Cet Arc Hub Res Qua Peak Influence 6170 | 40 555 382 1608 960 . 350 874 2335 1318 2019 984 1981 1500 . . . . 340 1482 1591 2961 1861 3343 1783 632 1288 . . . . 586 205 4897 6170 4013 1780 1905 1272 1299 Initial 3455 | . 26 200 . 625 . . 81 566 1138 617 984 547 1039 . . . . 42 243 777 1113 1554 1302 1754 624 442 . . . . 271 205 143 2398 3455 1597 623 999 625 Average 1447 | 21 310 184 687 760 . 242 633 1525 913 1441 877 1338 1134 . . . . 160 1096 1445 2059 1678 2315 1776 627 838 . . . . 346 205 3153 4602 3713 1742 1244 1114 1048 Maximum Alert Level 5 | . 2 1 5 3 . 1 3 5 4 5 3 5 4 . . . . 1 4 4 5 5 5 5 2 4 . . . . 2 1 5 5 5 5 5 4 4 Low Security (%) 9 | 100 33 59 15 . . 30 9 . . . . . . . . . . 67 . . . . . . . . . . . . . . 3 . . . . . . Level 1 10 | . 31 40 18 . . 69 8 . 2 . . . . . . . . 32 6 . . . . . . . . . . . 84 100 1 . . . . . . Level 2 11 | . 34 . 22 21 . . 33 8 25 3 . 6 . . . . . . 14 . . . . . 100 32 . . . . 15 . 4 . . . 5 . 5 Level 3 18 | . . . 20 78 . . 47 22 33 23 100 28 61 . . . . . 16 17 . . . . . 44 . . . . . . 5 . . . 33 34 44 Level 4 18 | . . . 15 . . . . 19 38 24 . 27 38 . . . . . 62 82 17 30 10 . . 23 . . . . . . 15 . . 4 45 65 50 Level 5 20 | . . . 7 . . . . 49 . 48 . 37 . . . . . . . . 82 57 89 100 . . . . . . . . 3 24 100 95 15 . . High Security 10 | . . . . . . . . . . . . . . . . . . . . . . 12 . . . . . . . . . . 65 75 . . . . . Max Security . | . . . . . . . . . . . . . . . . . . . . . . . . . . . . . . . . . . . . . . . . Sterilizations 3 | . . . 1 . . . . . . . . . . . . . . . . . . . . . . . . . . . . . 1 1 . . . . . Squads Dispatched 146 | . 5 1 17 1 . 1 8 . 4 . . . 7 . . . . 3 . 4 . 2 . 1 . 10 . . . . 5 . 34 27 . . 9 4 3 Investigation 35 | . 4 1 8 1 . . 4 . 1 . . . 2 . . . . . . 1 . . . . . 2 . . . . 3 . 2 2 . . 1 . 3 Extermination 7 | . . . . . . . . . . . . . 1 . . . . . . . . . . . . 2 . . . . 1 . 2 . . . 1 . . Reinforcement 28 | . 1 . 4 . . 1 2 . 2 . . . 1 . . . . 2 . 1 . 1 . 1 . . . . . . 1 . 2 1 . . 4 4 . Assault 64 | . . . 5 . . . 1 . . . . . 3 . . . . . . 1 . . . . . 2 . . . . . . 25 24 . . 3 . . Garrison 12 | . . . . . . . 1 . 1 . . . . . . . . 1 . 1 . 1 . . . 4 . . . . . . 3 . . . . . . Intercept . | . . . . . . . . . . . . . . . . . . . . . . . . . . . . . . . . . . . . . . . . Searches Triggered . | . . . . . . . . . . . . . . . . . . . . . . . . . . . . . . . . . . . . . . . . Construction Impeded 7 | . . . 2 . . 1 . . 1 . . . . . . . . . . . . . . . . . . . . . 1 . 1 . . . 1 . . Haulers Reinforced 4 | . . . . . . . . . . . . . . . . . . 1 . 1 . 1 . . . . . . . . . . . . . . . 1 . Active Scanning Responses . | . . . . . . . . . . . . . . . . . . . . . . . . . . . . . . . . . . . . . . . . Cargo Convoy Interrupts . | . . . . . . . . . . . . . . . . . . . . . . . . . . . . . . . . . . . . . . . . Stealth | -11 -10 -10 -9 -9 -9 -8 -8 -8 -8 -8 -8 -8 -7 -7 -7 -7 -6 -6 -6 -6 -6 -6 -6 -5 -5 -5 -5 -5 -5 -4 -4 -4 -4 -4 -4 -4 -4 -3 -3 --------- Run | Jun Mat Min Mat Min Exi Min Mat Gar Mat Gar Mat Gar Fac Low Low Zio Pro Fac Gar Fac Gar Fac Gar Fac Was Fac Upp Upp War Pro Fac Was Fac Ext Cet Arc Hub Res Qua Distress Signals 24 | . 1 . 1 . . . 1 1 4 . . . . . . . . . . 1 . 1 . . . . . . 2 . . . 2 4 2 . 2 2 . Communications Jammed 75 | . . . . . . . . . . . . . 5 . . . . 2 . . 4 . . . . . . . . . . . . 50 13 1 . . . Distress Signals 75 | . . . . . . . . . . . . . 5 . . . . 2 . . 4 . . . . . . . . . . . . 50 13 1 . . . Times Spotted 1131 | . 32 3 87 16 22 15 47 39 22 29 . 28 22 7 14 . 3 15 25 . 36 8 39 . 4 37 9 15 103 23 3 . 180 157 14 7 27 21 22 Peak Tracking Total 22 | . 3 2 9 4 10 7 6 5 5 4 . 4 6 4 4 . 2 4 4 . 5 2 6 . 2 7 4 5 19 4 1 . 13 22 5 2 5 5 6 Tactical Retreats 69 | . 2 . 4 . 4 1 2 7 1 10 . 3 3 . . . . 1 . . . . 2 . . 5 2 1 . 8 . . 3 9 . . 1 . . Traps | -11 -10 -10 -9 -9 -9 -8 -8 -8 -8 -8 -8 -8 -7 -7 -7 -7 -6 -6 -6 -6 -6 -6 -6 -5 -5 -5 -5 -5 -5 -4 -4 -4 -4 -4 -4 -4 -4 -3 -3 ------- Run | Jun Mat Min Mat Min Exi Min Mat Gar Mat Gar Mat Gar Fac Low Low Zio Pro Fac Gar Fac Gar Fac Gar Fac Was Fac Upp Upp War Pro Fac Was Fac Ext Cet Arc Hub Res Qua Traps Triggered 29 | . . . 2 . . . . 3 . 7 . 3 1 . . . . . 3 1 . . 1 1 . 1 . . . . 1 . 3 1 . . 1 . . Indirectly 1 | . . . . . . . . . . . . . 1 . . . . . . . . . . . . . . . . . . . . . . . . . . Trap Hack Attempts . | . . . . . . . . . . . . . . . . . . . . . . . . . . . . . . . . . . . . . . . . Triggered . | . . . . . . . . . . . . . . . . . . . . . . . . . . . . . . . . . . . . . . . . Disarmed . | . . . . . . . . . . . . . . . . . . . . . . . . . . . . . . . . . . . . . . . . Reprogrammed 16 | . 8 . . . . . 8 . . . . . . . . . . . . . . . . . . . . . . . . . . . . . . . . Reused 1 | . . . . . . . 1 . . . . . . . . . . . . . . . . . . . . . . . . . . . . . . . . Traps Extracted . | . . . . . . . . . . . . . . . . . . . . . . . . . . . . . . . . . . . . . . . . Installed . | . . . . . . . . . . . . . . . . . . . . . . . . . . . . . . . . . . . . . . . . Triggered 20 | . . . 1 1 . . 1 . . . . . . . . . . . . . . . . . . . 1 . 16 . . . . . . . . . . Exploded 3 | . . . . . 3 . . . . . . . . . . . . . . . . . . . . . . . . . . . . . . . . . . Machines | -11 -10 -10 -9 -9 -9 -8 -8 -8 -8 -8 -8 -8 -7 -7 -7 -7 -6 -6 -6 -6 -6 -6 -6 -5 -5 -5 -5 -5 -5 -4 -4 -4 -4 -4 -4 -4 -4 -3 -3 ---------- Run | Jun Mat Min Mat Min Exi Min Mat Gar Mat Gar Mat Gar Fac Low Low Zio Pro Fac Gar Fac Gar Fac Gar Fac Was Fac Upp Upp War Pro Fac Was Fac Ext Cet Arc Hub Res Qua Machines Disabled 288 | . 22 4 45 2 13 . 10 17 6 10 . 12 12 . . . . 2 12 11 13 6 13 . . 10 . 5 1 . 7 . 16 13 . 2 12 2 10 Max in Single Turn 7 | . 3 1 4 1 2 . 2 2 2 1 . 2 2 . . . . 1 1 2 2 2 1 . . 2 . 1 1 . 4 . 2 1 . 1 7 1 2 Garrison Access 6 | . . . . . . . . . . . . . . . . . . . . 1 . . . . . 2 . . . . . . 2 . . . . . 1 Garrison Relay 31 | . . . . . . . . 6 . 5 . 6 . . . . . . 5 . 4 . 5 . . . . . . . . . . . . . . . . Phase Generator 3 | . . . . . . . . . . . . . . . . . . . 1 . 1 . 1 . . . . . . . . . . . . . . . . Network Hub 1 | . . . . . . . . . . . . . . . . . . . . . . . . . . . . . . . . . . . . . 1 . . Machines Repaired 2 | . 1 . 1 . . . . . . . . . . . . . . . . . . . . . . . . . . . . . . . . . . . . Machines Sabotaged . | . . . . . . . . . . . . . . . . . . . . . . . . . . . . . . . . . . . . . . . . Overloaded Fab Kills . | . . . . . . . . . . . . . . . . . . . . . . . . . . . . . . . . . . . . . . . . Hacking | -11 -10 -10 -9 -9 -9 -8 -8 -8 -8 -8 -8 -8 -7 -7 -7 -7 -6 -6 -6 -6 -6 -6 -6 -5 -5 -5 -5 -5 -5 -4 -4 -4 -4 -4 -4 -4 -4 -3 -3 --------- Run | Jun Mat Min Mat Min Exi Min Mat Gar Mat Gar Mat Gar Fac Low Low Zio Pro Fac Gar Fac Gar Fac Gar Fac Was Fac Upp Upp War Pro Fac Was Fac Ext Cet Arc Hub Res Qua Machines Accessed 122 | . 8 3 13 1 . . 7 3 6 4 2 4 10 . 1 1 . 3 3 5 . 2 3 1 . 6 . 1 2 . 4 . 6 7 . 1 3 1 11 Terminals 88 | . 6 1 10 . . . 6 3 4 4 1 4 5 . . . . 1 3 4 . 1 3 1 . 3 . 1 . . 3 . 3 7 . . 3 1 10 Fabricators 6 | . . . . . . . . . . . . . 3 . . . . . . . . . . . . 1 . . . . . . 2 . . . . . . Repair Stations . | . . . . . . . . . . . . . . . . . . . . . . . . . . . . . . . . . . . . . . . . Recycling Units 8 | . 2 . 2 . . . . . 1 . . . 2 . . . . . . . . . . . . . . . . . 1 . . . . . . . . Scanalyzers 3 | . . . 1 . . . . . . . . . . . . . . 1 . . . . . . . . . . . . . . 1 . . . . . . Garrison Access 9 | . . . . . . . 1 . 1 . 1 . . . . . . 1 . 1 . 1 . . . 2 . . . . . . . . . . . . 1 Total Hacks 472 | . 40 6 79 1 . . 35 9 36 12 9 13 32 . 1 6 . 11 7 20 . 4 8 1 . 13 . 7 5 . 14 . 24 20 . 16 8 1 34 Successful 281 | . 25 3 61 1 . . 16 4 23 7 5 5 14 . 1 6 . 7 5 9 . 4 3 . . 4 . 7 5 . 5 . 10 10 . 16 4 1 20 Failed 188 | . 14 3 18 . . . 19 5 12 5 4 8 18 . . . . 4 2 11 . . 5 1 . 9 . . . . 9 . 14 10 . . 4 . 13 Catastrophic 25 | . 1 1 1 . . . 3 1 . 1 . . 3 . . . . . . 2 . . . 1 . 3 . . . . 2 . 1 2 . . 1 . 2 Database Lockouts 3 | . 1 . . . . . . . 1 . . . . . . . . . . . . . . . . . . . . . . . . . . . . . 1 Manual 169 | . 20 2 40 . 1 . 20 4 12 7 7 1 16 . . . . . 3 7 . . 1 1 . 3 . . . . 3 . 8 9 1 . . . 3 Terminals 360 | . 32 4 62 . . . 34 9 31 12 8 13 12 . . . . 2 7 19 . 3 8 1 . 7 . 7 . . 10 . 17 20 . . 8 1 33 Fabricators 18 | . . . . . . . . . . . . . 12 . . . . . . . . . . . . 1 . . . . . . 5 . . . . . . Repair Stations . | . . . . . . . . . . . . . . . . . . . . . . . . . . . . . . . . . . . . . . . . Recycling Units 36 | . 8 . 12 . . . . . 4 . . . 8 . . . . . . . . . . . . . . . . . 4 . . . . . . . . Scanalyzers 15 | . . . 5 . . . . . . . . . . . . . . 8 . . . . . . . . . . . . . . 2 . . . . . . Garrison Access 12 | . . . . . . . 1 . 1 . 1 . . . . . . 1 . 1 . 1 . . . 5 . . . . . . . . . . . . 1 Terminal Hacks 192 | . 16 3 34 1 . . 13 3 17 4 3 4 3 . 1 6 . 1 4 6 . 3 2 . . 2 . 7 5 . 3 . 4 8 . 16 4 1 18 Record 43 | . . . 5 . . . . . 2 . . . . . . . . . . . . 1 . . . . . 7 4 . . . . . . 16 . . 8 Part Schematic 6 | . . . . . . . . . . . . . . . . 6 . . . . . . . . . . . . . . . . . . . . . . . Robot Schematic 4 | . . . . . . . . . . . . . . . . . . . . 1 . . . . . . . . . . . . 1 1 . . . . 1 Robot Analysis 14 | . 3 . 6 . . . 1 . . . . . . . . . . . . . . . . . . . . . . . 1 . 1 . . . 1 . 1 Prototype ID Bank 21 | . 5 . 4 . . . 1 . 2 . . . 1 . . . . . . 1 . 1 . . . . . . . . . . 1 1 . . 2 . 2 Open Door 14 | . . 2 . 1 . . . 1 . 1 . 1 . . 1 . . . 1 . . . . . . . . . 1 . . . . 3 . . . . 2 Open DSF 2 | . . . . . . . . . . . . . . . . . . . . 1 . . . . . . . . . . . . . . . . . 1 . Level Access Points 2 | . 1 . . . . . . . . . . . . . . . . . . . . . . . . 1 . . . . . . . . . . . . . Branch Access Points 8 | . . . 2 . . . . . . . . . 1 . . . . . . 1 . . . . . 1 . . . . 1 . . 1 . . . . 1 Emergency Access Points 11 | . . . 1 . . . 2 1 1 1 . 1 . . . . . . 1 1 . . . . . . . . . . 1 . 1 . . . . . . Machine Index 2 | . . . . . . . 1 . . . . . . . . . . . . . . 1 . . . . . . . . . . . . . . . . . Terminal Index 2 | . . . 1 . . . . . . . . . . . . . . 1 . . . . . . . . . . . . . . . . . . . . . Repair Station Index 1 | . . . 1 . . . . . . . . . . . . . . . . . . . . . . . . . . . . . . . . . . . . Garrison Index 3 | . . . . . . . . . 1 . 1 . . . . . . . . 1 . . . . . . . . . . . . . . . . . . . Alert Level 1 | . . . . . . . . . 1 . . . . . . . . . . . . . . . . . . . . . . . . . . . . . . Unreport Threat 16 | . 1 . 4 . . . 3 . 6 . 1 . . . . . . . 1 . . . . . . . . . . . . . . . . . . . . Reprogram Traps 6 | . 2 . 1 . . . 2 . 1 . . . . . . . . . . . . . . . . . . . . . . . . . . . . . . Dispatch Records 2 | . . 1 1 . . . . . . . . . . . . . . . . . . . . . . . . . . . . . . . . . . . . Maintenance Status 1 | . . . 1 . . . . . . . . . . . . . . . . . . . . . . . . . . . . . . . . . . . . Investigation Status 1 | . . . 1 . . . . . . . . . . . . . . . . . . . . . . . . . . . . . . . . . . . . Recall Investigation 2 | . . . 1 . . . . . . . . . . . . . . . . . . . . . . . . . . . . . . . . . . . 1 Hauler Manifests 5 | . 1 . 1 . . . . . 1 . . . . . . . . . . . . . . . . . . . . . . . . 1 . . . . 1 Registered Components 3 | . 1 . 1 . . . 1 . . . . . . . . . . . . . . . . . . . . . . . . . . . . . . . . Registered Prototypes 1 | . . . . . . . . . 1 . . . . . . . . . . . . . . . . . . . . . . . . . . . . . . Zone Layout 13 | . 2 . 3 . . . 2 . 1 . 1 . 1 . . . . . . . . . . . . . . . . . . . . 1 . . 1 . 1 Garrison Registry 4 | . . . . . . . . 1 . 1 . 1 . . . . . . 1 . . . . . . . . . . . . . . . . . . . . Patrol Navigation 3 | . . . . . . . . . . 1 . 1 . . . . . . . . . . 1 . . . . . . . . . . . . . . . . Security Stations 1 | . . . . . . . . . . . . . . . . . . . . . . . 1 . . . . . . . . . . . . . . . . Fabricator Hacks 4 | . . . . . . . . . . . . . 4 . . . . . . . . . . . . . . . . . . . . . . . . . . Network Status 3 | . . . . . . . . . . . . . 3 . . . . . . . . . . . . . . . . . . . . . . . . . . Build 1 | . . . . . . . . . . . . . 1 . . . . . . . . . . . . . . . . . . . . . . . . . . Repair Station Hacks . | . . . . . . . . . . . . . . . . . . . . . . . . . . . . . . . . . . . . . . . . Recycling Unit Hacks 7 | . 1 . 3 . . . . . . . . . 2 . . . . . . . . . . . . . . . . . 1 . . . . . . . . Report Inventory 6 | . 1 . 2 . . . . . . . . . 2 . . . . . . . . . . . . . . . . . 1 . . . . . . . . Retrieve Matter 1 | . . . 1 . . . . . . . . . . . . . . . . . . . . . . . . . . . . . . . . . . . . Scanalyzer 12 | . . . 5 . . . . . . . . . . . . . . 5 . . . . . . . . . . . . . . 2 . . . . . . Insert Component 6 | . . . 3 . . . . . . . . . . . . . . 2 . . . . . . . . . . . . . . 1 . . . . . . Analyze 6 | . . . 2 . . . . . . . . . . . . . . 3 . . . . . . . . . . . . . . 1 . . . . . . Garrison Access Hacks 8 | . . . . . . . 1 . 1 . 1 . . . . . . 1 . 1 . 1 . . . 1 . . . . . . . . . . . . 1 Unlock Access 6 | . . . . . . . 1 . 1 . 1 . . . . . . 1 . 1 . 1 . . . . . . . . . . . . . . . . . Seal Access 2 | . . . . . . . . . . . . . . . . . . . . . . . . . . 1 . . . . . . . . . . . . 1 Unauthorized Hacks 58 | . 8 . 19 . . . 2 1 5 3 1 1 5 . . . . . 1 2 . . 1 . . 1 . . . . 1 . 4 2 . . . . 1 Terminals 33 | . 3 . 12 . . . 2 1 2 3 1 1 . . . . . . 1 2 . . 1 . . . . . . . . . 1 2 . . . . 1 Botnet 19 | . 2 . 5 . . . 2 . 2 1 1 . . . . . . . . 2 . . . . . . . . . . . . 1 2 . . . . 1 Detonate 1 | . . . 1 . . . . . . . . . . . . . . . . . . . . . . . . . . . . . . . . . . . . Disrupt 1 | . . . 1 . . . . . . . . . . . . . . . . . . . . . . . . . . . . . . . . . . . . Sabotage 2 | . 1 . 1 . . . . . . . . . . . . . . . . . . . . . . . . . . . . . . . . . . . . Search 4 | . . . 4 . . . . . . . . . . . . . . . . . . . . . . . . . . . . . . . . . . . . Override 6 | . . . . . . . . 1 . 2 . 1 . . . . . . 1 . . . 1 . . . . . . . . . . . . . . . . Fabricators 7 | . . . . . . . . . . . . . 3 . . . . . . . . . . . . 1 . . . . . . 3 . . . . . . Report 1 | . . . . . . . . . . . . . 1 . . . . . . . . . . . . . . . . . . . . . . . . . . Fabnet 5 | . . . . . . . . . . . . . 2 . . . . . . . . . . . . 1 . . . . . . 2 . . . . . . Haulers 1 | . . . . . . . . . . . . . . . . . . . . . . . . . . . . . . . . . 1 . . . . . . Repair Stations . | . . . . . . . . . . . . . . . . . . . . . . . . . . . . . . . . . . . . . . . . Recycling Units 18 | . 5 . 7 . . . . . 3 . . . 2 . . . . . . . . . . . . . . . . . 1 . . . . . . . . Monitor 2 | . 1 . 1 . . . . . . . . . . . . . . . . . . . . . . . . . . . . . . . . . . . . Reject 6 | . 1 . 2 . . . . . 1 . . . 1 . . . . . . . . . . . . . . . . . 1 . . . . . . . . Mask 5 | . 1 . 2 . . . . . 1 . . . 1 . . . . . . . . . . . . . . . . . . . . . . . . . . Tunnel 5 | . 2 . 2 . . . . . 1 . . . . . . . . . . . . . . . . . . . . . . . . . . . . . . Scanalyzers . | . . . . . . . . . . . . . . . . . . . . . . . . . . . . . . . . . . . . . . . . Garrison Access . | . . . . . . . . . . . . . . . . . . . . . . . . . . . . . . . . . . . . . . . . Data Cores Recovered 2 | . . . . . . . 1 . . . . . 1 . . . . . . . . . . . . . . . . . . . . . . . . . . Used . | . . . . . . . . . . . . . . . . . . . . . . . . . . . . . . . . . . . . . . . . Hacking Detections 86 | . 7 1 11 . . . 7 2 4 3 1 2 7 . . . . 2 2 3 . 2 2 1 . 4 . 1 . . 4 . 5 5 . . 3 1 6 Full Trace Events 31 | . 3 1 3 . . . 5 1 . . . 1 2 . . . . . . . . . 2 . . 2 . . . . 3 . 2 2 . . 1 . 3 Feedback Events 4 | . . 1 . . . . . . . . . . 1 . . . . . . . . . . . . . . . . . . . 1 1 . . . . . Corruption 4 | . . 1 . . . . . . . . . . 1 . . . . . . . . . . . . . . . . . . . 1 1 . . . . . Feedback Blocked . | . . . . . . . . . . . . . . . . . . . . . . . . . . . . . . . . . . . . . . . . Robot Schematics Acquired 9 | . . . . . . . . . . . . . . . . 4 . . . 1 . . . . . . . . . . . . 1 1 . . . . 2 Robots Built . | . . . . . . . . . . . . . . . . . . . . . . . . . . . . . . . . . . . . . . . . Authchips . | . . . . . . . . . . . . . . . . . . . . . . . . . . . . . . . . . . . . . . . . Time . | . . . . . . . . . . . . . . . . . . . . . . . . . . . . . . . . . . . . . . . . Total Robot Build Rating . | . . . . . . . . . . . . . . . . . . . . . . . . . . . . . . . . . . . . . . . . Part Schematics Acquired 34 | . . . 2 . . . . . . . . . . . . 21 . 1 . . . . . . . . . . . . . . 1 . . . . . 9 Parts Built 2 | . . . . . . . . . . . . . 2 . . . . . . . . . . . . . . . . . . . . . . . . . . Authchips . | . . . . . . . . . . . . . . . . . . . . . . . . . . . . . . . . . . . . . . . . Time 39 | . . . . . . . . . . . . . 39 . . . . . . . . . . . . . . . . . . . . . . . . . . Total Part Build Rating 14 | . . . . . . . . . . . . . 14 . . . . . . . . . . . . . . . . . . . . . . . . . . Parts Repaired . | . . . . . . . . . . . . . . . . . . . . . . . . . . . . . . . . . . . . . . . . Time . | . . . . . . . . . . . . . . . . . . . . . . . . . . . . . . . . . . . . . . . . Parts Recycled . | . . . . . . . . . . . . . . . . . . . . . . . . . . . . . . . . . . . . . . . . Recycled Matter . | . . . . . . . . . . . . . . . . . . . . . . . . . . . . . . . . . . . . . . . . Retrieved Matter 240 | . . . 240 . . . . . . . . . . . . . . . . . . . . . . . . . . . . . . . . . . . . Retrieved Components . | . . . . . . . . . . . . . . . . . . . . . . . . . . . . . . . . . . . . . . . . Parts Scanalyzed 4 | . . . 2 . . . . . . . . . . . . . . 2 . . . . . . . . . . . . . . . . . . . . . Part Schematics Acquired 4 | . . . 2 . . . . . . . . . . . . . . 1 . . . . . . . . . . . . . . 1 . . . . . . Parts Damaged . | . . . . . . . . . . . . . . . . . . . . . . . . . . . . . . . . . . . . . . . . Bothacking | -11 -10 -10 -9 -9 -9 -8 -8 -8 -8 -8 -8 -8 -7 -7 -7 -7 -6 -6 -6 -6 -6 -6 -6 -5 -5 -5 -5 -5 -5 -4 -4 -4 -4 -4 -4 -4 -4 -3 -3 ------------ Run | Jun Mat Min Mat Min Exi Min Mat Gar Mat Gar Mat Gar Fac Low Low Zio Pro Fac Gar Fac Gar Fac Gar Fac Was Fac Upp Upp War Pro Fac Was Fac Ext Cet Arc Hub Res Qua Used RIF Installer . | . . . . . . . . . . . . . . . . . . . . . . . . . . . . . . . . . . . . . . . . Robots Hacked 20 | . . . . . . . . . . . . . . . . . 1 2 . 1 4 . 1 . . . . . 2 1 . . 4 3 . . . 1 . Non-combat . | . . . . . . . . . . . . . . . . . . . . . . . . . . . . . . . . . . . . . . . . Combat 20 | . . . . . . . . . . . . . . . . . 1 2 . 1 4 . 1 . . . . . 2 1 . . 4 3 . . . 1 . Robot Hacks Applied . | . . . . . . . . . . . . . . . . . . . . . . . . . . . . . . . . . . . . . . . . Relay Couplers Released 58 | . . . . . . . . 12 . 9 . 10 . . . . . . 9 . 7 . 8 . . 2 . . . . . . 1 . . . . . . Machine Destruction 56 | . . . . . . . . 10 . 9 . 10 . . . . . . 9 . 7 . 8 . . 2 . . . . . . 1 . . . . . . Programmers 2 | . . . . . . . . 2 . . . . . . . . . . . . . . . . . . . . . . . . . . . . . . . Fabnet Peak Effective % 6 | . . . . . . . . . . . . . . . . . 6 6 6 6 6 6 6 2 2 2 2 2 2 3 3 3 3 3 3 3 3 1 1 Autooverrided 20 | . . . . . . . . . . . . . . . . . 1 2 . 1 4 . 1 . . . . . 2 1 . . 4 3 . . . 1 . Robots Rewired 43 | . . . . . . . . 5 . . . 2 . . . . . . 5 . 2 . 14 . . . . . . . . . . 15 . . . . . Allies Hacked 3 | . . . . . . . . . . . . . . . . . . . . . 1 . 1 . . . . . . . . . 1 . . . . . . Hacks Repelled . | . . . . . . . . . . . . . . . . . . . . . . . . . . . . . . . . . . . . . . . . Allies | -11 -10 -10 -9 -9 -9 -8 -8 -8 -8 -8 -8 -8 -7 -7 -7 -7 -6 -6 -6 -6 -6 -6 -6 -5 -5 -5 -5 -5 -5 -4 -4 -4 -4 -4 -4 -4 -4 -3 -3 -------- Run | Jun Mat Min Mat Min Exi Min Mat Gar Mat Gar Mat Gar Fac Low Low Zio Pro Fac Gar Fac Gar Fac Gar Fac Was Fac Upp Upp War Pro Fac Was Fac Ext Cet Arc Hub Res Qua Total Allies 123 | . . 4 . 2 . . . 7 . 1 . 2 . . . 4 1 2 8 1 10 . 17 . . . . . 2 1 . 20 4 31 5 . . 1 . Largest Group 20 | . . 3 3 2 . . . 5 5 1 1 2 . . . 4 5 6 5 6 7 2 12 1 1 1 . . 1 1 . 20 20 12 11 8 4 1 . Highest-Rated Group 849 | . . 40 40 41 . . . 80 80 31 31 70 . . . 126 155 150 500 530 401 84 346 58 58 58 . . 26 12 . 692 692 526 849 712 384 47 . Highest-Rated Ally 159 | . . 31 16 31 . . . 31 16 31 31 39 . . . 39 39 39 148 148 148 46 148 58 58 58 . . 26 12 . 50 50 159 159 146 96 47 . Total Orders 10 | . . . . . . . . . . . . . . . . . . . . 1 1 . 2 . . . 1 . . . . . . . 3 2 . . . STAY 3 | . . . . . . . . . . . . . . . . . . . . . . . . . . . . . . . . . . . 2 1 . . . ROAM 4 | . . . . . . . . . . . . . . . . . . . . 1 1 . 2 . . . . . . . . . . . . . . . . FOLLOW 2 | . . . . . . . . . . . . . . . . . . . . . . . . . . . . . . . . . . . 1 1 . . . EXPLORE 1 | . . . . . . . . . . . . . . . . . . . . . . . . . . . 1 . . . . . . . . . . . . Ally Attacks 906 | . . . 15 . . . . 8 22 1 . 26 . . . . 5 49 36 51 52 3 95 3 11 . . . 7 5 . . 282 75 54 23 79 4 . Total Damage 24048 | . . . 193 . . . . 196 258 22 . 431 . . . . 46 547 989 1978 1310 129 3292 66 476 . . . 872 36 . . 6653 1912 1235 635 2639 133 . Kills 176 | . . . 1 . . . . 1 5 1 . 3 . . . . . 8 7 15 16 1 27 2 1 . . . 5 1 . . 46 14 7 3 12 . . Allies Corrupted 7 | . . . 1 . . . . . . . . . . . . . . . . . 1 . . . . . . . . . . . 4 1 . . . . . Allies Melted 1 | . . . . . . . . . . . . . . . . . . . . . . . . . . . . . . . . . . . . . 1 . . Intel | -11 -10 -10 -9 -9 -9 -8 -8 -8 -8 -8 -8 -8 -7 -7 -7 -7 -6 -6 -6 -6 -6 -6 -6 -5 -5 -5 -5 -5 -5 -4 -4 -4 -4 -4 -4 -4 -4 -3 -3 ------- Run | Jun Mat Min Mat Min Exi Min Mat Gar Mat Gar Mat Gar Fac Low Low Zio Pro Fac Gar Fac Gar Fac Gar Fac Was Fac Upp Upp War Pro Fac Was Fac Ext Cet Arc Hub Res Qua Robot Analysis Total 13 | . 2 . 6 . . . 1 . . . . . . . . . . . . . . . . . . . . . . . 1 . 1 . . . 1 . 1 Derelict Logs Recovered 10 | . . 2 . 2 . . . . . . . . . 2 1 1 . . . . . . . . . . . . . 2 . . . . . . . . . Drone Launches 2 | . . . . . . . . . . . . . . . . . . . . . . . . . . . 2 . . . . . . . . . . . . Drone Recoveries . | . . . . . . . . . . . . . . . . . . . . . . . . . . . . . . . . . . . . . . . . Decoded 0b10 Intel 205 | . . . . . . . . . . . . . . . . . . 4 1 10 23 6 28 1 . 24 . . . . 5 . 48 21 1 . 9 8 16 Traps 133 | . . . . . . . . . . . . . . . . . . 4 1 9 15 5 20 1 . 14 . . . . 3 . 30 17 . . 2 . 12 Emergency Access 63 | . . . . . . . . . . . . . . . . . . . . 1 7 1 7 . . 9 . . . . 2 . 15 4 . . 6 8 3 Garrisons 2 | . . . . . . . . . . . . . . . . . . . . . . . . . . 1 . . . . . . 1 . . . . . . Exits 7 | . . . . . . . . . . . . . . . . . . . . . 1 . 1 . . . . . . . . . 2 . 1 . 1 . 1 Exploration | -11 -10 -10 -9 -9 -9 -8 -8 -8 -8 -8 -8 -8 -7 -7 -7 -7 -6 -6 -6 -6 -6 -6 -6 -5 -5 -5 -5 -5 -5 -4 -4 -4 -4 -4 -4 -4 -4 -3 -3 ------------- Run | Jun Mat Min Mat Min Exi Min Mat Gar Mat Gar Mat Gar Fac Low Low Zio Pro Fac Gar Fac Gar Fac Gar Fac Was Fac Upp Upp War Pro Fac Was Fac Ext Cet Arc Hub Res Qua Turns Passed 42940 | 126 2599 1267 3804 1359 1214 533 694 1474 313 1415 32 1355 1248 503 2045 1526 484 529 1478 385 1841 383 1870 73 263 1437 764 981 1700 789 269 354 3315 1577 307 208 530 508 1388 Spaces Moved 20759 | 19 1203 618 1550 814 867 151 348 680 134 766 23 761 651 307 1301 1064 344 330 539 179 777 166 811 46 135 601 325 525 841 438 148 168 1269 569 145 87 216 216 627 Core 7 | . 3 . 3 1 . . . . . . . . . . . . . . . . . . . . . . . . . . . . . . . . . . . Treads 11624 | . 583 618 1547 446 . . . . . . . . . . . . . . 141 179 777 166 811 46 135 601 325 525 841 438 148 168 1269 569 145 87 216 216 627 Legs 18 | 18 . . . . . . . . . . . . . . . . . . . . . . . . . . . . . . . . . . . . . . . Wheels 9110 | 1 617 . . 367 867 151 348 680 134 766 23 761 651 307 1301 1064 344 330 398 . . . . . . . . . . . . . . . . . . . . Hover . | . . . . . . . . . . . . . . . . . . . . . . . . . . . . . . . . . . . . . . . . Flight . | . . . . . . . . . . . . . . . . . . . . . . . . . . . . . . . . . . . . . . . . Fastest Speed 90 | 100 90 160 160 100 100 115 115 115 130 130 130 130 130 145 145 115 130 130 130 170 160 160 160 160 160 160 160 160 160 160 160 160 160 160 160 160 160 160 160 Average Speed 150 | 118 129 160 162 140 106 119 115 121 130 130 130 130 140 145 145 137 130 130 161 180 164 160 160 160 160 160 160 160 160 160 160 160 191 180 160 160 160 160 177 Slowest Speed 500 | 120 250 160 300 500 130 130 130 130 130 130 130 130 145 145 145 160 130 130 250 250 170 160 160 160 160 160 160 160 160 160 160 160 245 245 160 160 160 160 245 Overloaded Moves . | . . . . . . . . . . . . . . . . . . . . . . . . . . . . . . . . . . . . . . . . Propulsion Burnouts . | . . . . . . . . . . . . . . . . . . . . . . . . . . . . . . . . . . . . . . . . Robots Hopped . | . . . . . . . . . . . . . . . . . . . . . . . . . . . . . . . . . . . . . . . . Cave-ins Triggered . | . . . . . . . . . . . . . . . . . . . . . . . . . . . . . . . . . . . . . . . . Teleports 2 | . . . . . . . . . . . . . . . . . . . . . . . . . . . . . . . . . . . . . . . 2 Exploration Rate (%) 58 | 3 97 97 97 97 86 22 41 81 22 90 4 82 24 56 98 85 52 12 83 9 98 8 89 2 83 23 91 77 84 63 7 86 49 72 59 84 28 10 71 Regions Visited 39 Branch Regions 17 Pre-discovered Areas 13 | . 2 1 2 1 . . . . 1 . . . . 3 . 2 . . . . . . . . . . . 1 . . . . . . . . . . . Known Exits Taken 15 | . . 1 1 . . . 1 . 1 . 1 . 1 . . . . 1 . 1 . 1 . . . 1 . . . 1 . . 1 1 1 . 1 . . Unknown Exits Taken 14 | 1 1 . . 1 1 1 . . . . . . . 1 1 1 1 . . . . . . . . . 1 1 1 . . . . . . 1 . 1 . Scrap Searched 17 | . . 2 . 1 . . . . . . . . . 2 2 2 3 . . . . . . . . . 1 3 . 1 . . . . . . . . . Spaces Dug 226 | . . . 1 . . . 1 5 60 9 . 4 39 . . . . . 9 . 7 5 19 . . 2 . 1 . . . . 41 5 . . 5 6 7 Terrain Destroyed 3450 | . 125 39 297 11 22 56 103 44 97 57 . 42 74 18 22 . . 21 95 54 203 29 203 . 7 37 10 25 150 13 37 . 229 190 4 9 179 11 937 Melee 1 | . . . 1 . . . . . . . . . . . . . . . . . . . . . . . . . . . . . . . . . . . . Projectile 707 | . . . . 1 2 55 65 34 43 54 . 36 5 . 18 . . 2 22 1 58 29 55 . 7 34 10 24 8 13 5 . 38 36 1 9 21 11 10 AOE 2684 | . 125 39 296 10 20 . 35 . 53 . . . 62 17 . . . 18 68 53 141 . 140 . . . . . 142 . 32 . 191 154 3 . 158 . 927 Terrain Rammed . | . . . . . . . . . . . . . . . . . . . . . . . . . . . . . . . . . . . . . . . . Walls Destroyed . | . . . . . . . . . . . . . . . . . . . . . . . . . . . . . . . . . . . . . . . . Machines Disabled . | . . . . . . . . . . . . . . . . . . . . . . . . . . . . . . . . . . . . . . . . Actions | -11 -10 -10 -9 -9 -9 -8 -8 -8 -8 -8 -8 -8 -7 -7 -7 -7 -6 -6 -6 -6 -6 -6 -6 -5 -5 -5 -5 -5 -5 -4 -4 -4 -4 -4 -4 -4 -4 -3 -3 --------- Run | Jun Mat Min Mat Min Exi Min Mat Gar Mat Gar Mat Gar Fac Low Low Zio Pro Fac Gar Fac Gar Fac Gar Fac Was Fac Upp Upp War Pro Fac Was Fac Ext Cet Arc Hub Res Qua Total 29913 | 95 1948 824 2415 980 1101 426 524 1173 214 1077 25 1001 906 352 1406 1136 371 386 1023 233 1200 241 1253 47 171 988 554 623 1188 513 181 253 2105 1043 216 133 369 370 849 Wait 4885 | 58 505 132 429 76 67 176 21 222 11 130 2 80 175 28 46 21 13 16 279 28 216 23 208 1 12 266 209 38 230 37 11 79 587 189 35 22 41 105 61 Move 20724 | 18 1202 617 1549 813 866 150 348 679 134 765 23 758 650 306 1300 1063 343 330 538 178 776 165 810 46 134 600 324 524 840 437 148 167 1268 568 144 86 215 215 627 Hop . | . . . . . . . . . . . . . . . . . . . . . . . . . . . . . . . . . . . . . . . . Pick Up 133 | . 4 5 11 5 24 . 4 . . . . . . . . 15 1 3 2 2 4 . 5 . 1 . . . 7 4 2 . 13 6 . . 2 . 13 Fast Attach 190 | 4 16 2 16 3 12 13 2 12 1 1 . 4 6 1 . 3 1 1 4 . 6 2 6 . 1 11 2 . 13 1 2 3 5 5 4 . 4 . 23 Attach 90 | . . 2 2 2 11 . 4 3 . . . . . . . 11 . 2 . 3 3 1 . . . 1 . . 8 2 1 . 10 7 1 . 4 2 10 Detach 51 | . 1 . 2 1 9 3 1 3 . . . . 1 . . 5 . . . 1 2 . 1 . 1 2 . . 3 . . 1 5 2 1 . 1 2 3 Swap 43 | . 6 . 8 2 4 1 . 1 . . . . . . . 1 . . . 2 2 . 1 . 1 2 . . . 2 1 . 4 3 . . 1 . 1 Drop 274 | 1 16 6 16 8 33 10 4 10 1 1 . 4 4 1 . 16 2 2 7 1 7 3 10 . 5 8 2 . 23 5 3 2 15 10 3 . 6 1 28 Fire 2104 | 14 170 37 271 44 48 45 94 128 47 86 . 101 60 10 43 . 5 32 104 6 100 33 102 . 8 62 9 29 31 16 7 1 112 97 8 16 47 22 59 Melee 22 | . . . 6 . 15 . . . . . . . . . . 1 . . . . . . . . . . . . . . . . . . . . . . . Ram 1 | . . . . . . . . . . 1 . . . . . . . . . . . . . . . . . . . . . . . . . . . . . Kick . | . . . . . . . . . . . . . . . . . . . . . . . . . . . . . . . . . . . . . . . . Crush 1 | . . . 1 . . . . . . . . . . . . . . . . . . . . . . . . . . . . . . . . . . . . Escape Stasis 105 | . . . . . . . . 23 . 48 . 16 . . . . . . 16 . . . . . . . . . . . . . . 2 . . . . . Rewire 253 | . . . . . . . . 26 . . . 5 . . . . . . 35 . 20 . 78 . . . . . . . . . . 89 . . . . . Trap . | . . . . . . . . . . . . . . . . . . . . . . . . . . . . . . . . . . . . . . . . Miscellaneous 1037 | . 28 23 104 26 12 28 46 66 20 45 . 33 10 6 17 . 6 . 38 12 64 14 32 . 8 36 8 32 33 9 6 . 86 65 20 9 48 23 24 Route ------- -11/Junkyard -10/Materials (discovered 4 exits: *Mat x3 / *Min) -10/Mines (discovered 2 exits: *Mat x2) -9/Materials (discovered 4 exits: *Mat x3 / *Min) -9/Mines (discovered 3 exits: *Mat x2 / *Exi) -9/Exiles -8/Mines -8/Materials (discovered 4 exits: *Fac x2 / Sto / Gar) -8/Garrison (discovered 3 exits: *Mat x3) -8/Materials (discovered 3 exits: *Fac / *Sto / Gar) -8/Garrison (discovered 3 exits: *Mat x3) -8/Materials -8/Garrison (discovered 3 exits: *Fac x3) -7/Factory (discovered 2 exits: *Low x2) -7/Lower Caves -7/Lower Caves (discovered 2 exits: *Fac / *Zio) -7/Zion -6/Proximity Caves -6/Factory (discovered 2 exits: Low / Gar) -6/Garrison (discovered 3 exits: *Fac x3) -6/Factory (discovered 3 exits: Low x2 / Gar) -6/Garrison (discovered 3 exits: *Fac x3) -6/Factory -6/Garrison (discovered 3 exits: *Fac x3) -5/Factory -5/Waste -5/Factory (discovered 6 exits: *Fac x4 / *Upp x2) -5/Upper Caves -5/Upper Caves (discovered 2 exits: *Fac / *War) -5/Warlord -4/Proximity Caves -4/Factory (discovered 4 exits: Upp x2 / Ext x2) -4/Waste -4/Factory (discovered 5 exits: *Res x2 / *Upp x2 / *Ext) -4/Extension (discovered 2 exits: *Res / *Cet) -4/Cetus (discovered 2 exits: *Res / *Arc) -4/Archives (discovered 3 exits: *Res / *Hub x2) -4/Hub_04(d) (discovered 2 exits: *Res x2) -3/Research -3/Quarantine (discovered 1 exit: *Res) History --------- Turn | Location | Event 6 | -11/Junkyard | Upgraded with Utility slot (x3) 6 | -11/Junkyard | Upgraded with Weapon slot (x1) 58 | -11/Junkyard | Discovered new exit (range 2) 127 | -11/Junkyard | Entered Materials 313 | -10/Materials | Build established: Mutant 638 | -10/Materials | Discovered new exit (range 16) 892 | -10/Materials | Build established: Scavenger-Skirmisher 1007 | -10/Materials | Reached level 2 1192 | -10/Materials | Central database locked down 1207 | -10/Materials | Discovered new exit (range 14) 1226 | -10/Materials | Identified exit to Materials 1322 | -10/Materials | Build established: Hacker-Skirmisher 1401 | -10/Materials | Reached level 3 1418 | -10/Materials | Upgraded with Utility slot (x1) 2179 | -10/Materials | Reached level 4 2188 | -10/Materials | Upgraded with Propulsion slot (x1) 2726 | -10/Materials | Entered Mines 2755 | -10/Mines | Build established: Hacker-Mutant 2762 | -10/Mines | Met a Derelict bent on vengeance 2924 | -10/Mines | Discovered exit to Materials (range 9) 3255 | -10/Mines | Received a Mining Laser from a helpful Derelict 3457 | -10/Mines | Met a Derelict who couldn't figure out how to use a Trap Extractor 3531 | -10/Mines | Assisted by bots powering up and referring to "LRC-V3" 3540 | -10/Mines | Learned Materials emergency access door positions 3829 | -10/Mines | Reached level 5 3875 | -10/Mines | Upgraded with Utility slot (x1) 3876 | -10/Mines | Found the Drone Emporium 3887 | -10/Mines | Found Prototype Device 3963 | -10/Mines | Discovered exit to Materials (range 16) 3993 | -10/Mines | Entered Materials 3993 | -9/Materials | Accompanied by 3 allies 3995 | -9/Materials | Reached level 6 4372 | -9/Materials | Discovered new exit (range 9) 4586 | -9/Materials | Reached level 7 4768 | -9/Materials | Identified Sensor Drone Bay 4987 | -9/Materials | Identified exit to Mines 5231 | -9/Materials | Reached level 8 5233 | -9/Materials | Upgraded with Utility slot (x1) 5334 | -9/Materials | Discovered new exit (range 8) 5539 | -9/Materials | Core integrity fell below 50% 5573 | -9/Materials | Core integrity fell below 20% 5707 | -9/Materials | Reached level 9 5983 | -9/Materials | Discovered new exit (range 3) 6393 | -9/Materials | First assault squad dispatched 6479 | -9/Materials | Reached level 10 6514 | -9/Materials | Destroyed 8 combat bots 6568 | -9/Materials | Upgraded with Power slot (x1) 6568 | -9/Materials | Upgraded with Weapon slot (x1) 7352 | -9/Materials | Sterilization system engaged 7352 | -9/Materials | Non-combat units ordered to evacuate 7360 | -9/Materials | Destroyed 9 combat bots 7452 | -9/Materials | Combat units ordered to evacuate 7652 | -9/Materials | Ambient heat levels rising (+10) 7797 | -9/Materials | Entered Mines 7803 | -9/Mines | Reached level 11 7920 | -9/Mines | Met a Derelict shopkeep closing up shop 7985 | -9/Mines | Excavation squad dispatched 7985 | -9/Mines | A large section of the Mines collapsed 8059 | -9/Mines | Discovered new exit (range 4) 8097 | -9/Mines | Build established: Hacker-Gunner 8200 | -9/Mines | Received a Rocket Launcher from a helpful Derelict 8314 | -9/Mines | Learned location of 1 exit from Materials 8439 | -9/Mines | Discovered new exit (range 9) 8449 | -9/Mines | Learned location of Storage (-8) 8702 | -9/Mines | Learned Materials emergency access door positions 9152 | -9/Mines | Deemed a non-threat by the Exiles lab entrance 9152 | -9/Mines | Discovered new exit (range 5) 9156 | -9/Mines | Entered Exiles 9206 | -9/Exiles | Met 8R-AWN 9223 | -9/Exiles | Met EX-HEX 9253 | -9/Exiles | Met EX-BIN 9264 | -9/Exiles | Aligned with FarCom system 9265 | -9/Exiles | Given EX-Vault access code 9400 | -9/Exiles | Met EX-DEC 9457 | -9/Exiles | Build established: Hacker-Mutant 9628 | -9/Exiles | Opened EX-Vault 9634 | -9/Exiles | Found Prototype Energy Gun 9641 | -9/Exiles | Found Prototype Processor 9665 | -9/Exiles | Warned to stay clear of 0b10 Research branches 9790 | -9/Exiles | Attacked by the Exiles 9903 | -9/Exiles | Found Prototype Ballistic Gun 9961 | -9/Exiles | Destroyed 8R-AWN 9965 | -9/Exiles | Found Prototype Processor 9965 | -9/Exiles | Identified Exp. Targeting Computer 9976 | -9/Exiles | Found Prototype Protection 9976 | -9/Exiles | Identified 8R-AWN's Armor/EX 9981 | -9/Exiles | Found Prototype Protection 9981 | -9/Exiles | Identified 8R-AWN's Armor/TH 9994 | -9/Exiles | Found Prototype Device 9994 | -9/Exiles | Identified AS-neutralizer No. 17b 10008 | -9/Exiles | Identified 8R-AWN's Boregun 10009 | -9/Exiles | Found 8R-AWN's Boregun 10118 | -9/Exiles | Destroyed EX-BIN 10147 | -9/Exiles | Destroyed EX-DEC 10177 | -9/Exiles | Found Prototype Device 10177 | -9/Exiles | Identified System Purifier 10190 | -9/Exiles | Found Prototype Processor 10190 | -9/Exiles | Identified Exp. Core Analyzer 10194 | -9/Exiles | Destroyed EX-HEX 10355 | -9/Exiles | Discovered new exit (range 14) 10369 | -9/Exiles | Build established: Scavenger-Mutant 10370 | -9/Exiles | Entered Mines 10444 | -8/Mines | Reached level 12 10465 | -8/Mines | AD-0RF came to Exiles' defense 10468 | -8/Mines | Destroyed 10 combat bots 10499 | -8/Mines | Destroyed AD-0RF 10561 | -8/Mines | Found Prototype Device 10561 | -8/Mines | Identified Exp. Thermal Shield 10577 | -8/Mines | Found Exp. Targeting Computer 10881 | -8/Mines | Discovered new exit (range 13) 10903 | -8/Mines | Entered Materials 10904 | -8/Materials | Identified exit to Storage 11018 | -8/Materials | Reached level 13 11067 | -8/Materials | Destroyed 8 combat bots 11129 | -8/Materials | Discovered new exit (range 3) 11303 | -8/Materials | First assault squad dispatched 11438 | -8/Materials | Discovered new exit (range 15) 11443 | -8/Materials | Destroyed 9 combat bots 11456 | -8/Materials | Identified exit to Factory 11509 | -8/Materials | Garrison activated, responded to threat 11531 | -8/Materials | Reached level 14 11565 | -8/Materials | Destroyed 8 combat bots 11597 | -8/Materials | Identified exit to Garrison 11597 | -8/Materials | Entered Garrison 11630 | -8/Garrison | Triggered checkpoint 11716 | -8/Garrison | Triggered checkpoint 11737 | -8/Garrison | Garrison Relay disabled 11842 | -8/Garrison | Triggered checkpoint 11930 | -8/Garrison | Triggered checkpoint 11989 | -8/Garrison | Discovered new exit (range 12) 11994 | -8/Garrison | Discovered new exit (range 16) 11994 | -8/Garrison | Discovered new exit (range 46) 11994 | -8/Garrison | Discovered new exit (range 57) 11994 | -8/Garrison | Identified exit to Materials 12016 | -8/Garrison | Triggered checkpoint 12064 | -8/Garrison | Garrison Relay disabled 12212 | -8/Garrison | Triggered checkpoint 12212 | -8/Garrison | Upgraded with Utility slot (x1) 12397 | -8/Garrison | Rescued a captive Derelict 12399 | -8/Garrison | Rescued a captive Derelict 12421 | -8/Garrison | Reached level 15 12422 | -8/Garrison | Triggered checkpoint 12518 | -8/Garrison | Spotted B-75 Beast 12544 | -8/Garrison | Destroyed B-75 Beast 12553 | -8/Garrison | Upgraded with Weapon slot (x1) 12554 | -8/Garrison | Upgraded with Power slot (x1) 12746 | -8/Garrison | Garrison Relay disabled 13071 | -8/Garrison | Entered Materials 13071 | -8/Materials | Accompanied by 5 allies 13071 | -8/Materials | Discovered exit to Storage (range 6) 13212 | -8/Materials | Central database locked down 13317 | -8/Materials | Garrison activated, responded to threat 13368 | -8/Materials | Discovered exit to Factory (range 13) 13371 | -8/Materials | Destroyed 12 combat bots 13384 | -8/Materials | Identified exit to Garrison 13384 | -8/Materials | Entered Garrison 13397 | -8/Garrison | Triggered checkpoint 13432 | -8/Garrison | Garrison Relay disabled 13451 | -8/Garrison | Identified exit to Materials 13810 | -8/Garrison | Triggered checkpoint 13821 | -8/Garrison | Destroyed 8 combat bots 13857 | -8/Garrison | Triggered checkpoint 13913 | -8/Garrison | Triggered checkpoint 13979 | -8/Garrison | Garrison Relay disabled 14076 | -8/Garrison | Triggered checkpoint 14245 | -8/Garrison | Core integrity fell below 50% 14363 | -8/Garrison | Garrison Relay disabled 14363 | -8/Garrison | Reached level 16 14507 | -8/Garrison | Triggered checkpoint 14544 | -8/Garrison | Rescued a captive Derelict 14597 | -8/Garrison | Discovered exit to Materials (range 75) 14597 | -8/Garrison | Discovered exit to Materials (range 51) 14597 | -8/Garrison | Discovered exit to Materials (range 6) 14799 | -8/Garrison | Entered Materials 14799 | -8/Materials | Accompanied by 1 ally 14831 | -8/Materials | Identified exit to Garrison 14831 | -8/Materials | Entered Garrison 14831 | -8/Garrison | Accompanied by 1 ally 14894 | -8/Garrison | Triggered checkpoint 14909 | -8/Garrison | Garrison Relay disabled 14909 | -8/Garrison | Garrison Relay disabled 15212 | -8/Garrison | Triggered checkpoint 15302 | -8/Garrison | Garrison Relay disabled 15445 | -8/Garrison | Triggered checkpoint 15514 | -8/Garrison | Discovered exit to Factory (range 12) 15524 | -8/Garrison | Discovered exit to Factory (range 12) 15524 | -8/Garrison | Discovered exit to Factory (range 45) 15524 | -8/Garrison | Discovered exit to Factory (range 49) 15580 | -8/Garrison | Triggered checkpoint 15676 | -8/Garrison | Spotted B-75 Beast 15686 | -8/Garrison | Destroyed B-75 Beast 15897 | -8/Garrison | Triggered checkpoint 15989 | -8/Garrison | Attempted to access garrison exit controls, blocked by remote lockdown 15992 | -8/Garrison | Build established: Hacker-Mutant 16186 | -8/Garrison | Entered Factory 16337 | -7/Factory | Fabricated Dispersion Rifle (x2) 16820 | -7/Factory | Build established: Scavenger-Mutant 16842 | -7/Factory | Reached level 17 16844 | -7/Factory | Found Rocket Array 16986 | -7/Factory | First assault squad dispatched 17270 | -7/Factory | Discovered new exit (range 16) 17394 | -7/Factory | Identified exit to Lower Caves 17434 | -7/Factory | Entered Lower Caves 17440 | -7/Lower Caves | Met a Warlord Commander 17441 | -7/Lower Caves | Learned location of Warlord (-5) 17445 | -7/Lower Caves | Found Encrypted Comm Array 17544 | -7/Lower Caves | Encountered a Warlord checkpoint 17876 | -7/Lower Caves | Discovered new exit (range 13) 17937 | -7/Lower Caves | Entered another Lower Caves area 17982 | -7/Lower Caves | Attracted the attention of an 0b10 checkpoint 18164 | -7/Lower Caves | Spotted B-75 Beast 18199 | -7/Lower Caves | Destroyed B-75 Beast 18266 | -7/Lower Caves | Encountered a Warlord checkpoint 18545 | -7/Lower Caves | Discovered new exit (range 9) 19429 | -7/Lower Caves | Learned location of 1 exit from Factory 19575 | -7/Lower Caves | Discovered new exit (range 11) 19982 | -7/Lower Caves | Entered Zion 19984 | -7/Zion | Reached level 18 19988 | -7/Zion | Upgraded with Utility slot (x1) 20016 | -7/Zion | Gained Derelict followers 20069 | -7/Zion | Acquired unknown access codes intercepted by a Zionite 20080 | -7/Zion | Discovered new exit (range 15) 20124 | -7/Zion | Found CR-A16's Pointy Stick 20399 | -7/Zion | Found Prototype Hackware 20400 | -7/Zion | Identified Exp. System Shield 20404 | -7/Zion | Found Prototype Processor 20405 | -7/Zion | Identified Exp. Armor Integrity Analyzer 20419 | -7/Zion | Found Exp. Targeting Computer 20590 | -7/Zion | Learned Factory emergency access door positions 20706 | -7/Zion | Build established: Hacker-Mutant 21466 | -7/Zion | Found Prototype Energy Gun 21466 | -7/Zion | Identified Storm Laser 21508 | -7/Zion | Entered Proximity Caves 21508 | -6/Proximity Caves | Accompanied by 4 allies 21659 | -6/Proximity Caves | Spotted B-75 Beast 21667 | -6/Proximity Caves | Destroyed B-75 Beast 21753 | -6/Proximity Caves | Build established: Hacker-Gunner 21967 | -6/Proximity Caves | Discovered new exit (range 5) 21992 | -6/Proximity Caves | Entered Factory 21992 | -6/Factory | Accompanied by 4 allies 21993 | -6/Factory | Identified exit to Lower Caves 21994 | -6/Factory | Reached level 19 22213 | -6/Factory | Local machine network offline 22498 | -6/Factory | Garrison activated, responded to threat 22521 | -6/Factory | Identified exit to Garrison 22521 | -6/Factory | Entered Garrison 22608 | -6/Garrison | Triggered checkpoint 22622 | -6/Garrison | Garrison Relay disabled 22640 | -6/Garrison | Discovered new exit (range 66) 22640 | -6/Garrison | Discovered new exit (range 100) 22640 | -6/Garrison | Discovered new exit (range 56) 22640 | -6/Garrison | Identified exit to Factory 22761 | -6/Garrison | Garrison Relay disabled 22761 | -6/Garrison | Reached level 20 22796 | -6/Garrison | Build established: Hacker-Mutant 22806 | -6/Garrison | Upgraded with Propulsion slot (x1) 22990 | -6/Garrison | Triggered checkpoint 23063 | -6/Garrison | Garrison Relay disabled 23097 | -6/Garrison | Phase Generator disabled 23111 | -6/Garrison | Triggered checkpoint 23179 | -6/Garrison | Rescued a captive Derelict 23299 | -6/Garrison | Triggered checkpoint 23357 | -6/Garrison | Spotted B-86 Titan 23375 | -6/Garrison | Allies destroyed B-86 Titan 23383 | -6/Garrison | Spotted B-90 Cyclops 23397 | -6/Garrison | Allies destroyed B-90 Cyclops 23409 | -6/Garrison | Rewired B-90 Cyclops 23451 | -6/Garrison | Rewired B-86 Titan 23545 | -6/Garrison | Found Quantum Capacitor 23680 | -6/Garrison | Garrison Relay disabled 23690 | -6/Garrison | Triggered checkpoint 23732 | -6/Garrison | Found embedded Infiltrators 23999 | -6/Garrison | Entered Factory 23999 | -6/Factory | Accompanied by 5 allies 24065 | -6/Factory | Reached level 21 24066 | -6/Factory | Garrison activated, responded to threat 24072 | -6/Factory | Upgraded with Propulsion slot (x1) 24377 | -6/Factory | Identified exit to Garrison 24384 | -6/Factory | Entered Garrison 24384 | -6/Garrison | Accompanied by 3 allies 24399 | -6/Garrison | Found embedded Infiltrators 24428 | -6/Garrison | Triggered checkpoint 24478 | -6/Garrison | Garrison Relay disabled 24537 | -6/Garrison | Phase Generator disabled 24695 | -6/Garrison | Triggered checkpoint 24696 | -6/Garrison | Triggered checkpoint 24716 | -6/Garrison | Triggered checkpoint 24721 | -6/Garrison | Triggered checkpoint 24777 | -6/Garrison | Destroyed 13 combat bots 24895 | -6/Garrison | Discovered new exit (range 11) 24897 | -6/Garrison | Spotted B-75 Beast 24898 | -6/Garrison | Build established: Hacker-Gunner 24908 | -6/Garrison | Destroyed B-75 Beast 24912 | -6/Garrison | Spotted B-86 Titan 24917 | -6/Garrison | Local machine network offline 24941 | -6/Garrison | Destroyed B-86 Titan 25014 | -6/Garrison | Rewired B-75 Beast 25045 | -6/Garrison | Rewired B-90 Cyclops 25179 | -6/Garrison | Triggered checkpoint 25205 | -6/Garrison | Garrison Relay disabled 25529 | -6/Garrison | Triggered checkpoint 25578 | -6/Garrison | Garrison Relay disabled 25632 | -6/Garrison | Discovered new exit (range 16) 25858 | -6/Garrison | Identified exit to Factory 25881 | -6/Garrison | Reached level 22 25882 | -6/Garrison | Rescued a captive Derelict 25883 | -6/Garrison | Rescued a captive Derelict 25895 | -6/Garrison | Upgraded with Weapon slot (x1) 26062 | -6/Garrison | Triggered checkpoint 26088 | -6/Garrison | Triggered checkpoint 26116 | -6/Garrison | Garrison Relay disabled 26225 | -6/Garrison | Entered Factory 26225 | -6/Factory | Accompanied by 2 allies 26318 | -6/Factory | Build established: Scavenger-Gunner 26539 | -6/Factory | Garrison activated, responded to threat 26560 | -6/Factory | High security lockdown imminent 26601 | -6/Factory | Identified exit to Garrison 26608 | -6/Factory | Entered Garrison 26647 | -6/Garrison | Triggered checkpoint 26668 | -6/Garrison | Build established: Scavenger-Mutant 26691 | -6/Garrison | Destroyed 7 combat bots 26696 | -6/Garrison | Garrison Relay disabled 26927 | -6/Garrison | Triggered checkpoint 26978 | -6/Garrison | Triggered checkpoint 27022 | -6/Garrison | Triggered checkpoint 27173 | -6/Garrison | Learned Factory security intel 27219 | -6/Garrison | Discovered new exit (range 11) 27300 | -6/Garrison | Found embedded Infiltrators 27462 | -6/Garrison | Phase Generator disabled 27475 | -6/Garrison | Garrison Relay disabled 27484 | -6/Garrison | Triggered checkpoint 27760 | -6/Garrison | Build established: Scavenger-Gunner 27789 | -6/Garrison | Spotted B-75 Beast 27794 | -6/Garrison | Spotted B-90 Cyclops 27801 | -6/Garrison | Destroyed B-90 Cyclops 27808 | -6/Garrison | Destroyed B-75 Beast 27820 | -6/Garrison | Rewired B-90 Cyclops 27839 | -6/Garrison | Rewired B-75 Beast 27992 | -6/Garrison | Triggered checkpoint 28000 | -6/Garrison | Identified exit to Factory 28223 | -6/Garrison | Spotted B-75 Beast 28226 | -6/Garrison | Garrison Relay disabled 28240 | -6/Garrison | Destroyed B-75 Beast 28316 | -6/Garrison | Triggered checkpoint 28339 | -6/Garrison | Garrison Relay disabled 28478 | -6/Garrison | Entered Factory 28478 | -5/Factory | Accompanied by 1 ally 28480 | -5/Factory | Reached level 23 28551 | -5/Factory | Sucked down chute 28551 | -5/Factory | Entered Waste 28566 | -5/Waste | EMP discharged 28570 | -5/Waste | 1 allies followed down the chute 28638 | -5/Waste | Spotted C-40 Crusher 28639 | -5/Waste | Destroyed C-40 Crusher 28645 | -5/Waste | Spotted C-40 Crusher 28650 | -5/Waste | Destroyed C-40 Crusher 28650 | -5/Waste | Destroyed C-40 Crusher 28662 | -5/Waste | Found Unknown Protection 28662 | -5/Waste | Identified Damper Plating 28666 | -5/Waste | EMP discharged 28701 | -5/Waste | Spotted C-40 Crusher 28719 | -5/Waste | Allies destroyed C-40 Crusher 28753 | -5/Waste | Destroyed C-40 Crusher 28766 | -5/Waste | EMP discharged 28767 | -5/Waste | Spotted C-40 Crusher 28768 | -5/Waste | Destroyed C-40 Crusher 28793 | -5/Waste | Discovered new exit (range 11) 28814 | -5/Waste | Entered Factory 28814 | -5/Factory | Accompanied by 1 ally 28837 | -5/Factory | Identified exit to Factory 29157 | -5/Factory | Build established: Scavenger-Mutant 29414 | -5/Factory | First assault squad dispatched 29542 | -5/Factory | Garrison activated, responded to threat 29673 | -5/Factory | Identified exit to Upper Caves 29834 | -5/Factory | Build established: Scavenger-Gunner 29893 | -5/Factory | Garrison activated, responded to threat 29917 | -5/Factory | Reached level 24 29927 | -5/Factory | Found Prototype Launcher 29927 | -5/Factory | Identified Scatter Rocket Array 30043 | -5/Factory | Upgraded with Utility slot (x1) 30251 | -5/Factory | Entered Upper Caves 30334 | -5/Upper Caves | Attracted the attention of an 0b10 checkpoint 30506 | -5/Upper Caves | Discovered new exit (range 112) 31015 | -5/Upper Caves | Entered another Upper Caves area 31255 | -5/Upper Caves | Discovered exit to Factory (range 9) 31506 | -5/Upper Caves | Destroyed 12 combat bots 31520 | -5/Upper Caves | Attracted the attention of an 0b10 base 31541 | -5/Upper Caves | Learned location of Armory (-3) 31541 | -5/Upper Caves | Learned Extension stockpile data 31541 | -5/Upper Caves | Learned Extension terminal intel 31541 | -5/Upper Caves | Learned Armory terminal intel 31541 | -5/Upper Caves | Learned Extension garrison access intel 31541 | -5/Upper Caves | Learned Armory garrison access intel 31773 | -5/Upper Caves | Build established: Scavenger-Mutant 31986 | -5/Upper Caves | Discovered new exit (range 7) 31996 | -5/Upper Caves | Entered Warlord 32076 | -5/Warlord | System corruption cleaned by Quarantine Array 32304 | -5/Warlord | Found Prototype Energy Gun 32304 | -5/Warlord | Identified Plasma Storm 32597 | -5/Warlord | Build established: Scavenger-Gunner 32734 | -5/Warlord | Visited the Vortex Lab 32737 | -5/Warlord | Warlord's base attacked by MAIN.C 32754 | -5/Warlord | Found Prototype Launcher 32756 | -5/Warlord | Found Prototype Energy Cannon 32759 | -5/Warlord | Found Prototype Energy Cannon 32761 | -5/Warlord | Identified Vortex Catalyst Activator 32762 | -5/Warlord | Identified Vortex Driver (x2) 32848 | -5/Warlord | Found Prototype Special Weapon 32848 | -5/Warlord | Identified RU-N14's Throwing Claymores v3 32852 | -5/Warlord | Found RU-N14's Throwing Claymores v3 32931 | -5/Warlord | Met Warlord 32955 | -5/Warlord | Found Prototype Reactor 32955 | -5/Warlord | Identified Vortex Chain Reactor 32968 | -5/Warlord | Found Exp. Core Analyzer 33087 | -5/Warlord | Warlord forces counterattacked 33092 | -5/Warlord | Spotted Striker 33123 | -5/Warlord | Spotted Executioner 33134 | -5/Warlord | Destroyed Executioner 33185 | -5/Warlord | Spotted Executioner 33191 | -5/Warlord | Destroyed Executioner 33201 | -5/Warlord | Discovered new exit (range 14) 33214 | -5/Warlord | Destroyed 10 combat bots 33237 | -5/Warlord | Spotted Striker 33237 | -5/Warlord | Spotted Striker 33238 | -5/Warlord | Reached level 25 33238 | -5/Warlord | Destroyed Striker 33240 | -5/Warlord | Destroyed Striker 33256 | -5/Warlord | Build established: Hacker-Mutant 33261 | -5/Warlord | Destroyed 11 combat bots 33337 | -5/Warlord | Spotted Executioner 33337 | -5/Warlord | Spotted Striker 33340 | -5/Warlord | Destroyed Executioner 33343 | -5/Warlord | Destroyed Striker 33364 | -5/Warlord | Destroyed 8 combat bots 33412 | -5/Warlord | Warlord base infiltrated, sounded retreat 33446 | -5/Warlord | Spotted Executioner 33448 | -5/Warlord | Destroyed Executioner 33471 | -5/Warlord | Destroyed 17 combat bots 33537 | -5/Warlord | Spotted Executioner 33537 | -5/Warlord | Spotted Striker 33537 | -5/Warlord | Spotted Striker 33537 | -5/Warlord | Destroyed Executioner 33537 | -5/Warlord | Destroyed Striker 33548 | -5/Warlord | Destroyed Striker 33578 | -5/Warlord | Destroyed 19 combat bots 33637 | -5/Warlord | Spotted Executioner 33643 | -5/Warlord | Destroyed Executioner 33665 | -5/Warlord | Destroyed 16 combat bots 33696 | -5/Warlord | Entered Proximity Caves 33788 | -4/Proximity Caves | Reached level 26 33804 | -4/Proximity Caves | Upgraded with Weapon slot (x1) 34101 | -4/Proximity Caves | Build established: Scavenger-Executioner 34116 | -4/Proximity Caves | Learned Research terminal intel 34250 | -4/Proximity Caves | Learned Research trap positions 34350 | -4/Proximity Caves | Discovered exit to Factory (range 18) 34485 | -4/Proximity Caves | Entered Factory 34636 | -4/Factory | Identified exit to Upper Caves 34636 | -4/Factory | Identified exit to Extension 34754 | -4/Factory | Sucked down chute 34754 | -4/Factory | Entered Waste 34755 | -4/Waste | Joined by Warlord forces that had cleared the area 35007 | -4/Waste | Discovered new exit (range 12) 35074 | -4/Waste | Build established: Hacker-Executioner 35108 | -4/Waste | Entered Factory 35108 | -4/Factory | Accompanied by 20 allies 35421 | -4/Factory | Garrison activated, responded to threat 35429 | -4/Factory | Reached level 27 35451 | -4/Factory | Spotted B-86 Titan 35463 | -4/Factory | Destroyed B-86 Titan 35608 | -4/Factory | First assault squad dispatched 35972 | -4/Factory | Build established: Hacker-Mutant 36246 | -4/Factory | Reached level 28 36248 | -4/Factory | High security lockdown imminent 36328 | -4/Factory | High security lockdown engaged 36351 | -4/Factory | Identified exit to Research 36483 | -4/Factory | Destroyed 9 combat bots 36569 | -4/Factory | Destroyed 11 combat bots 36709 | -4/Factory | Destroyed 7 combat bots 36723 | -4/Factory | Build established: Hacker-Executioner 36781 | -4/Factory | Destroyed 15 combat bots 36903 | -4/Factory | Destroyed 7 combat bots 36942 | -4/Factory | Sterilization system engaged 36942 | -4/Factory | Non-combat units ordered to evacuate 36973 | -4/Factory | Destroyed 18 combat bots 36974 | -4/Factory | Local machine network offline 37012 | -4/Factory | Destroyed 7 combat bots 37042 | -4/Factory | Combat units ordered to evacuate 37242 | -4/Factory | Ambient heat levels rising (+10) 37284 | -4/Factory | Discovered exit to Research (range 19) 37392 | -4/Factory | Ambient heat levels rising (+10) 37529 | -4/Factory | Reached level 29 37542 | -4/Factory | Ambient heat levels rising (+10) 37628 | -4/Factory | Upgraded with Weapon slot (x1) 37629 | -4/Factory | Found Imp. Powered Armor 37692 | -4/Factory | Ambient heat levels rising (+10) 37807 | -4/Factory | Discovered exit to Upper Caves (range 13) 37842 | -4/Factory | Ambient heat levels rising (+10) 37927 | -4/Factory | Discovered exit to Upper Caves (range 4) 37992 | -4/Factory | Ambient heat levels rising (+10) 38018 | -4/Factory | Build established: Hacker-Mutant 38142 | -4/Factory | Ambient heat levels rising (+10) 38292 | -4/Factory | Ambient heat levels rising (+10) 38356 | -4/Factory | Spotted B-86 Titan 38366 | -4/Factory | Destroyed B-86 Titan 38423 | -4/Factory | Entered Extension 38424 | -4/Extension | Loaded intel: 19 terminal locations 38439 | -4/Extension | Disrupted transfer network 38468 | -4/Extension | Identified exit to Cetus 38488 | -4/Extension | Rescued a captive Derelict 38659 | -4/Extension | Rescued a captive Derelict 38660 | -4/Extension | Rescued a captive Derelict 38673 | -4/Extension | First assault squad dispatched 38753 | -4/Extension | Rescued a captive Derelict 38754 | -4/Extension | Rescued a captive Derelict 38807 | -4/Extension | High security lockdown imminent 38825 | -4/Extension | Destroyed 9 combat bots 38887 | -4/Extension | High security lockdown engaged 38901 | -4/Extension | Rescued a captive Derelict 38943 | -4/Extension | Spotted B-86 Titan 38962 | -4/Extension | Rescued a captive Derelict 38993 | -4/Extension | Destroyed B-86 Titan 39049 | -4/Extension | Destroyed 26 combat bots 39136 | -4/Extension | Destroyed 19 combat bots 39307 | -4/Extension | Destroyed 20 combat bots 39427 | -4/Extension | System corruption reached 10% 39447 | -4/Extension | Core integrity fell below 50% 39455 | -4/Extension | Core integrity fell below 20% 39472 | -4/Extension | Spotted B-86 Titan 39478 | -4/Extension | Destroyed B-86 Titan 39492 | -4/Extension | Sterilization system engaged 39492 | -4/Extension | Non-combat units ordered to evacuate 39512 | -4/Extension | Destroyed 27 combat bots 39592 | -4/Extension | Combat units ordered to evacuate 39792 | -4/Extension | Ambient heat levels rising (+10) 39823 | -4/Extension | Rescued a captive Derelict 39858 | -4/Extension | Rescued A7 39920 | -4/Extension | Rescued a captive Derelict 39927 | -4/Extension | Rescued a captive Derelict 39942 | -4/Extension | Ambient heat levels rising (+10) 39950 | -4/Extension | Rescued a captive Derelict 39951 | -4/Extension | Rescued a captive Derelict 39985 | -4/Extension | Discovered exit to Research (range 10) 39991 | -4/Extension | Reached level 30 40000 | -4/Extension | Entered Cetus 40000 | -4/Cetus | Accompanied by 9 allies (A7) 40005 | -4/Cetus | Acquired a Cetus Manufacturing Module code from A7 40020 | -4/Cetus | Spotted Cetus Guard 40020 | -4/Cetus | Spotted Cetus Guard 40022 | -4/Cetus | Destroyed Cetus Guard 40023 | -4/Cetus | Spotted Cetus Guard 40024 | -4/Cetus | Spotted Cetus Guard 40028 | -4/Cetus | Allies destroyed Cetus Guard 40035 | -4/Cetus | Allies destroyed Cetus Guard 40040 | -4/Cetus | Allies destroyed Cetus Guard 40139 | -4/Cetus | Started Cetus Manufacturing Module 40151 | -4/Cetus | Identified exit to Archives 40164 | -4/Cetus | Manufactured an Enhanced Grunt 40181 | -4/Cetus | Spotted Cetus Guard 40182 | -4/Cetus | Spotted Cetus Guard 40186 | -4/Cetus | Spotted Cetus Guard 40187 | -4/Cetus | Allies destroyed Cetus Guard 40189 | -4/Cetus | Manufactured an Enhanced Grunt 40194 | -4/Cetus | Allies destroyed Cetus Guard 40195 | -4/Cetus | Spotted Cetus Guard 40198 | -4/Cetus | Allies destroyed Cetus Guard 40198 | -4/Cetus | Destroyed Cetus Guard 40199 | -4/Cetus | Discovered exit to Research (range 20) 40214 | -4/Cetus | Manufactured an Enhanced Grunt 40215 | -4/Cetus | Met Revision 17 40239 | -4/Cetus | Manufactured an Enhanced Grunt 40264 | -4/Cetus | Manufactured an Enhanced Grunt 40307 | -4/Cetus | Entered Archives 40307 | -4/Archives | Accompanied by 8 allies (A7) 40355 | -4/Archives | Discovered new exit (range 20) 40385 | -4/Archives | Discovered new exit (range 20) 40390 | -4/Archives | Unable to access archive contents 40426 | -4/Archives | Discovered exit to Research (range 19) 40515 | -4/Archives | Entered Hub_04(d) 40515 | -4/Hub_04(d) | Accompanied by 4 allies 40687 | -4/Hub_04(d) | Spotted B-86 Titan 40726 | -4/Hub_04(d) | Destroyed B-86 Titan 40765 | -4/Hub_04(d) | First assault squad dispatched 40816 | -4/Hub_04(d) | Found Exp. Thermal Shield 40837 | -4/Hub_04(d) | Discovered exit to Research (range 13) 41022 | -4/Hub_04(d) | Network Hub disabled 41045 | -4/Hub_04(d) | Entered Research 41046 | -3/Research | Loaded intel: 111 trap records 41047 | -3/Research | Loaded intel: 24 terminal locations 41245 | -3/Research | Revision forces began assault on 0b10 41306 | -3/Research | Met up with Revision 17++ 41458 | -3/Research | Discovered new exit (range 17) 41553 | -3/Research | Entered Quarantine 41555 | -3/Quarantine | Reached level 31 41601 | -3/Quarantine | Cryocooling Duct disabled 41601 | -3/Quarantine | Cryocooling Duct disabled 41616 | -3/Quarantine | Ambient heat levels rising (+40) 41616 | -3/Quarantine | Non-combat units ordered to evacuate 41616 | -3/Quarantine | Combat units ordered to evacuate 41716 | -3/Quarantine | Quarantine Guard activated 41743 | -3/Quarantine | Met incapacitated Sigix Warrior 41743 | -3/Quarantine | Lockdown squad dispatched 41823 | -3/Quarantine | Spotted Quarantine Guard 41823 | -3/Quarantine | Spotted Quarantine Guard 41831 | -3/Quarantine | Destroyed Quarantine Guard 41838 | -3/Quarantine | Destroyed Quarantine Guard 41863 | -3/Quarantine | Spotted Quarantine Guard 41956 | -3/Quarantine | Spotted Lightning 41958 | -3/Quarantine | Spotted Lightning 41961 | -3/Quarantine | Destroyed Lightning 41961 | -3/Quarantine | Destroyed Lightning 41965 | -3/Quarantine | Destroyed Lightning 41972 | -3/Quarantine | Upgraded with Weapon slot (x1) 41986 | -3/Quarantine | Spotted Quarantine Guard 41990 | -3/Quarantine | Spotted Quarantine Guard 42000 | -3/Quarantine | Destroyed Quarantine Guard 42017 | -3/Quarantine | Destroyed Quarantine Guard 42028 | -3/Quarantine | Found Prototype Energy Cannon 42028 | -3/Quarantine | Identified EMDS 42045 | -3/Quarantine | Found Alien Artifact 42046 | -3/Quarantine | Identified Transdimensional Reconstructor 42046 | -3/Quarantine | Warped through subspace 42046 | -3/Quarantine | Spotted Quarantine Guard 42047 | -3/Quarantine | Core integrity fell below 50% 42057 | -3/Quarantine | Destroyed Quarantine Guard 42146 | -3/Quarantine | Found Alien Artifact 42146 | -3/Quarantine | Identified Hpw. Transdimensional Reconstructor 42146 | -3/Quarantine | Warped through subspace 42146 | -3/Quarantine | Spotted Quarantine Guard 42171 | -3/Quarantine | Destroyed Quarantine Guard 42187 | -3/Quarantine | Identified exit to Research 42200 | -3/Quarantine | Core integrity fell below 20% 42202 | -3/Quarantine | Destroyed Quarantine Guard 42362 | -3/Quarantine | Found Alien Reactor 42393 | -3/Quarantine | Spotted Quarantine Guard 42393 | -3/Quarantine | Spotted Quarantine Guard 42403 | -3/Quarantine | Destroyed Quarantine Guard 42403 | -3/Quarantine | Destroyed Quarantine Guard 42560 | -3/Quarantine | Found Alien Artifact 42560 | -3/Quarantine | Identified Terrabomb 42560 | -3/Quarantine | Used Terrabomb 42569 | -3/Quarantine | Found Terrabomb 42571 | -3/Quarantine | Spotted Quarantine Guard 42590 | -3/Quarantine | Destroyed Quarantine Guard 42628 | -3/Quarantine | Found Alien Artifact 42628 | -3/Quarantine | Identified Subatomic Replicator 42638 | -3/Quarantine | Used Subatomic Replicator to replicate Plasma Storm 42686 | -3/Quarantine | Central database locked down 42759 | -3/Quarantine | Found Alien Launcher 42759 | -3/Quarantine | Identified Sigix Terminator 42767 | -3/Quarantine | Used Terrabomb 42822 | -3/Quarantine | Spotted Fortress 42941 | -3/Quarantine | Fired Sigix Terminator 42941 | -3/Quarantine | Destroyed by Fortress with Graviton Cannon Last Messages --------------- 42746_ Connecting with Door Terminal... >>Open(Door) Sealed Barrier opened. 42754_ Vortex Driver implodes. 42754_ Vortex penetrates Suspension Chamber. 42754_ Suspension Chamber breached. 42755_ Dropped Vortex Catalyst Activator. 42759_ Acquired Alien Launcher. 42759_ Identified Sigix Terminator. 42764_ Dropped Terrabomb. 42766_ Acquired Terrabomb. 42767_ Dropped Remote Force Field. 42767_ Terrabomb activated. 42768_ Acquired Remote Force Field. 42772_ Dropped Sigix Terminator. 42772_ Acquired Vortex Catalyst Activator. 42871_ Dropped Vortex Catalyst Activator. 42872_ Acquired Sigix Terminator. 42941_ Sigix Terminator expended. 42941_ Remote Force Field blasted off. Map ----- +----------------------------------------------------+ | #?????????????????????????????????????????????? | | ####?????????????????????????????????????????????? | | ?????????????????????????????????????????????????? | | ?????????????????????????????????????????????????? | | ?????????????????????????????????????????????????? | | ?????????????????????????????????????????????????? | | ???????#####?????????????????????????????????????? | | ##???? """"#?????????????????????????????????????? | | #####""S""#####?????????????????????????????????? | | ## "# #??????????????????#??????????????? | | % # #???????????????### ???????????? | | #?????????????## ?????????? | | # #???????????# ?????????? | | ######???????? ????????? | | ###?????# ????????? | | # ###??? ????????? | | # ###? ???????? | | ## ???????? | | ??????? | | "" ??????? | | R"" " ??????? | | """ " ;;;;; ;;;;;;;;;;;;;;;###### | | """"""""";; | | + | | " + | | """" + @ | | + % | | """"" """""""";;;; | | " " """;; ;;; ;;;;;;;;;;;; | | " " "";; ;?? " | | " + """;; ????? " | | " "" T;;;;; ??????? | | """"" "" ;;;;;; ??????? | | " "; ] ;; ???????? | | " ;; " ;; ???????? | | " "; "";; ????????? | | ";;";;;;; ????????? | | """";;;;; ????????? | | " ?????????? | | " ?????????? | | " ???????????? | | """"" ??????????????? | | ????????????????? | | #??????????????????? | | ##??????????????????? | | " ????????????????????? | | """"" ?????????????????????????? | | """ ?????????????????????????? | | ?????????????????????????? | | ???????????????????????????? | +----------------------------------------------------+ Best States ------------- Heat Dissipation 184 Coolant Potential 120 Energy Generation 89 Energy Capacity 1700 Matter Stores 300 Matter Capacity 300 Sight Range 25 Terrain Scan Range 16 Terrain Scan Density 110 Jamming Range 16 Power Amplification 20 Additional Mass Support 12 Base Temperature (-) 200 EM Shielding 3 Armor Coverage 1650 Resistance: KI 30 Resistance: TH 90 Resistance: EX 90 Resistance: EM 90 Weapon Shielding 90 Weapon Cycling 25 Evasion (%) 55 Targeting Accuracy 24 Target Analysis 6 Core Analysis 8 Armor Integrity Analysis 50 Recoil Reduction 4 Matter Filtering 50 Particle Charging 25 Kinecelleration 40 Salvage Targeting 5 Offensive Hacking 26 Defensive Hacking 26 Item Schematics ----------------- Enh. Autogun | -9/Materials | Scanalyzed Imp. Treads | -9/Materials | Scanalyzed Mak. System Shield | -7/Zion | Archive Matter Compressor | -7/Zion | Archive Adv. ECM Suite | -7/Zion | Archive Hvy. Flak Cannon | -7/Zion | Archive System Restoration Module | -7/Zion | Archive Lgt. Angular Momentum Engine | -7/Zion | Archive Gravmag System | -7/Zion | Archive KE Penetrator | -7/Zion | Archive Antigrav System | -7/Zion | Archive Component Analysis Suite | -7/Zion | Archive Coil Gun | -7/Zion | Archive Hvy. Rocket Launcher | -7/Zion | Archive Hyp. Gauss Rifle | -7/Zion | Archive Plasma Flamer | -7/Zion | Archive Weapon Cycler | -7/Zion | Archive Riot Gun | -7/Zion | Free Hvy. Riot Gun | -7/Zion | Free Battle Rifle | -7/Zion | Free Hvy. Battle Rifle | -7/Zion | Free Battle Cannon | -7/Zion | Free Tactical Coordination Suite | -7/Zion | Free 0b10 Decoder Chip [Looter] | -6/Factory | Scanalyzed Remote Force Field | -4/Factory | Scanalyzed Exp. Melee Analysis Suite | -3/Quarantine | Archive Enh. Coil Gun | -3/Quarantine | Archive Adv. Myomer Leg | -3/Quarantine | Archive Hdn. Centrium Wheel | -3/Quarantine | Archive Exp. Thermal Shield | -3/Quarantine | Archive Exp. Target Analyzer | -3/Quarantine | Archive Exp. Thermal Defense Suite | -3/Quarantine | Archive Cld. Phase Cannon | -3/Quarantine | Archive Thunder Hammer | -3/Quarantine | Archive Robot Schematics ------------------ L-31 Rogue | -7/Zion | Archive K-01 Serf | -7/Zion | Archive G-47 Trooper | -7/Zion | Archive Y-72 Warden | -7/Zion | Archive L-41 Fighter | -6/Factory | Hacked L-61 Swordsman | -4/Factory | Hacked G-67 Veteran | -4/Extension | Hacked A-02 Transporter | -3/Quarantine | Archive C-55 Analyst | -3/Quarantine | Hacked Fabricated ------------ Dispersion Rifle | x2 | -7/Factory | Preloaded Alien Tech Used ----------------- Transdimensional Reconstructor High-powered Transdimensional Reconstructor Terrabomb Subatomic Replicator Sigix Terminator Achievements -------------- None Challenges ------------ None RPGLIKE | -11 -10 -10 -9 -9 -9 -8 -8 -8 -8 -8 -8 -8 -7 -7 -7 -7 -6 -6 -6 -6 -6 -6 -6 -5 -5 -5 -5 -5 -5 -4 -4 -4 -4 -4 -4 -4 -4 -3 -3 --------- Run | Jun Mat Min Mat Min Exi Min Mat Gar Mat Gar Mat Gar Fac Low Low Zio Pro Fac Gar Fac Gar Fac Gar Fac Was Fac Upp Upp War Pro Fac Was Fac Ext Cet Arc Hub Res Qua Levels Raised 30 | . 3 1 5 1 . 1 2 1 . 1 . . 1 . . 1 . 1 1 1 1 . . 1 . 1 . . 1 1 . . 3 1 . . . . 1 XP Earned 48666 | 3000 4731 1300 8723 668 80 1304 2849 1652 491 786 3 667 1326 335 484 141 748 1531 1824 780 1243 187 1076 546 48 1234 208 393 1689 713 577 46 3643 1476 192 71 320 711 870 XP Spent 46310 | 2950 4350 1700 6970 . 1310 1500 600 4200 . . . 1500 330 . . 2600 . 1700 1700 1100 1400 . . . . 3220 . . 300 1700 . 1200 3580 100 . . . . 2300 Upgrades 64 | 5 9 1 11 . 3 1 1 3 . . . 2 3 . . 1 . 2 3 1 1 . . . . 3 . . 1 1 . 2 7 2 . . . . 1 Power Slot 2 | . . . 1 . . . . 1 . . . . . . . . . . . . . . . . . . . . . . . . . . . . . . . Propulsion Slot 3 | . 1 . . . . . . . . . . . . . . . . . 1 1 . . . . . . . . . . . . . . . . . . . Utility Slot 9 | 3 1 1 1 . . . . 1 . . . . . . . 1 . . . . . . . . . 1 . . . . . . . . . . . . . Weapon Slot 7 | 1 . . 1 . . . . 1 . . . . . . . . . . . . 1 . . . . . . . . 1 . . 1 . . . . . 1 Core Integrity 4 | . . . . . 2 . . . . . . . . . . . . . . . . . . . . . . . . . . . . 2 . . . . . Heat Dissipation 11 | . . . 2 . . . . . . . . . 3 . . . . . . . . . . . . 2 . . . . . . 4 . . . . . . Inventory Capacity 6 | . 2 . 2 . 1 1 . . . . . . . . . . . . . . . . . . . . . . . . . . . . . . . . . Sight Range 4 | . . . . . . . . . . . . . . . . . . . 1 . . . . . . . . . 1 . . 2 . . . . . . . Terrain Scan Density 1 | 1 . . . . . . . . . . . . . . . . . . . . . . . . . . . . . . . . . . . . . . . Ranged Accuracy 6 | . 1 . 1 . . . 1 . . . . 2 . . . . . 1 . . . . . . . . . . . . . . . . . . . . . Hack Attack % 4 | . 2 . 1 . . . . . . . . . . . . . . 1 . . . . . . . . . . . . . . . . . . . . . Hack Defense % 2 | . 2 . . . . . . . . . . . . . . . . . . . . . . . . . . . . . . . . . . . . . . KI Damage % 3 | . . . 2 . . . . . . . . . . . . . . . 1 . . . . . . . . . . . . . . . . . . . . TH Damage % 2 | . . . . . . . . . . . . . . . . . . . . . . . . . . . . . . . . . 2 . . . . . . Protomatter Created 14109 | . 310 345 789 191 91 257 393 827 282 527 . 321 162 98 223 . 112 15 472 . 845 101 565 . . 397 56 420 438 133 40 . 2808 1677 252 . 325 95 542 Integrity Restored 20774 | . 555 454 2161 526 273 627 921 1300 395 905 . 684 187 111 325 . 102 . 751 242 1235 291 482 . 174 748 166 645 589 150 115 . 1685 1282 435 213 1006 496 543 Core 12044 | . 444 333 1794 314 273 627 465 407 362 726 . 516 142 54 222 . 32 . 319 14 359 127 138 . . 379 60 242 250 61 82 . 522 851 435 213 630 108 543 Parts 8730 | . 111 121 367 212 . . 456 893 33 179 . 168 45 57 103 . 70 . 432 228 876 164 344 . 174 369 106 403 339 89 33 . 1163 431 . . 376 388 . Protomatter Decayed 8302 | . 110 150 278 27 . 113 127 428 181 216 . 193 88 50 105 52 24 92 424 208 557 65 859 . . 163 . 332 652 . . 86 763 489 94 138 188 930 120 Game ------ Seed DispersionActivePlating Manual? 1 Play Time 05:53:50 Cumulative 508.0 hours Start 2023.03.22 @ 11:10:33 End 2023.03.23 @ 12:09:24 Sessions 25 Manual Loads 0 Difficulty Rogue Special Mode Winter2019/RPGLIKE Game No. 535 Rogue 535 Adventurer 0 Explorer 0 Win Type - Total 1 Types 1/0/0/0/0/0/0/0/0 Lore% 64 Gallery% 83 Achievement% 65 Wizard Run 0 Options --------- ASCII 0 Keyboard 0 Movement Mouse Keybinds 0 Fullscreen 2 Font 24/Smallcaps Map View 76x50 Tactical HUD 1 Map Filters NONE Filters NONE Steam 1 RUN: 627ef310-fc5a-49c4-b20a-cac6af6da985